{"text_format":"2","workbook":"xlsx","n_sheets":9,"sheets":["填写规范","设备分类","传感器数据","节拍日志","故障日志","装备配置参数","工艺配置参数","过站明细","非结构化数据"],"not_rendered":{"charts":0,"images":4,"macros":0,"external_links":0,"defined_names":0,"comments":0,"pivot_tables":0},"unopened":[],"bounds":{"document_bytes":16777216,"sheet_cells":100000,"run_cost":"one","rows_first":2000,"rows_last":500,"rows_between":2000,"halvings":0,"cell_chars":16384,"cell_head_chars":4096},"cells_cut":0,"cells_raw":0,"read":"whole","date_system":"1900"}

{"sheet":"填写规范","index":0,"n_rows":35,"n_cols":6,"rows_kept":35,"cut":false,"hidden":false,"merged":[[2,1,2,5],[3,1,3,5],[4,1,4,5],[5,1,5,5],[7,0,7,1],[8,1,8,5],[9,1,9,5],[10,1,10,5],[11,1,11,5],[12,1,12,5],[13,1,13,5],[33,2,33,5],[34,2,34,5]]}
[]
["填写说明"]
["序号","说明"]
[1,"导入设备模型信息需在各sheet页中进行设备信息及模型参数填写"]
[2,"各类数据中填写得“设备分类编码”需包含在设备分类列表中或系统中已经存在"]
[3,"设备分类及模型数据定义内容需符合“数据说明”中的填写要求"]
[]
["以下内容误删（作为引用提示使用）"]
["Int","请在左侧列输入\"最小值,最大值,单位\"（如\"0,100,摄氏度\"）"]
["Double（小数）","请在左侧列输入\"最小值,最大值,单位\"（如\"0,100,摄氏度\"）"]
["Enum（枚举）","请在左侧列输入\"参数值1:参数描述1;参数值2:参数描述2\"（如\"1:开启;2:关闭\"），至少填写一项参数"]
["Bool（布尔）","请在左侧列输入\"0:关闭;1:开启\"（如\"0;关闭;1:开启\"），必填"]
["String（字符串）","请在左侧列输入\"长度限制（字节）\"（如\"30\"）"]
["Struct（结构体）","请定义数据参数,如下格式\n 参数1,ID1,读写,bool(0:开;1:关);\n 参数2,ID2,读写,enum(0:开;1:关);\n 参数3,ID3,读写,string(30);\n 参数4,ID4,读写,double(0,3,摄氏度);\n 参数5,ID5,读写,int(0,3,摄氏度);\n 参数6,ID6,读写,timestamp();"]
[]
[]
["数据类别说明"]
["No","数据类别","优先级","属性/事件","上传","下发"]
[1,"传感器数据","高","属性"]
[2,"设备状态数据","高","属性"]
[3,"过站结果","高","事件"]
[4,"过站明细","高","事件"]
[5,"节拍日志","高","事件"]
[6,"故障日志","高","事件"]
[7,"工艺配置参数","高","属性","属性","服务"]
[8,"装备配置参数","高","属性","属性","服务"]
[9,"操作记录日志","中","事件"]
[10,"调试日志","低","事件"]
[11,"点检日志","中","事件"]
[12,"非结构化数据","中","事件"]
[]
[]
["标签填写说明"]
[1,"标签创建","标签需要在系统中提前创建，只有与系统中匹配的标签可以导入"]
[2,"导入格式","标签名称1:标签值1;标签名称2:标签值2（主电路:电能监控表;节拍类型:上料动作）"]

{"sheet":"设备分类","index":1,"n_rows":4,"n_cols":8,"rows_kept":4,"cut":false,"hidden":false,"merged":[[0,0,0,7]]}
["填写说明\n1.*为必填\n2.设备分类名称：必填，不超过30字符，不能重复，如填写的设备分类名称系统中已存在无法导入\n3.设备分类编码：必填，不超过30字符\n4.采集形式：必选，只能输入“周期采集”或“触发采集”，如输入其他内容无法导入\n5.默认采集周期：如“采集形式”为“周期采集”该数据为必填，如“采集形式”为“触发采集”，该数据不需填写，只能填写数字\n6.时间单位（默认采集周期）：如“采集形式”为“周期采集”该数据必选，如“采集形式”为“触发采集”，该数据不需选择，只能选择下拉框中定义的内容，填写其他数据无法导入\n7.默认采集时段：必填，需要按示意的格式填写\n8.默认数据：非必填，可以填写“过站明细日志”、“设备状态数据”、“过站结果”三类数据的一类或多类，填写多类时使用英文逗号分隔\n9.描述：非必填，不超过100字符\n10.删除示例数据：录入数据时需删除第四行及以下的示例数据"]
[]
["*设备分类名称","*设备分类编码","*采集形式","默认采集周期","时间单位（默认采集周期）","*默认采集时段","默认数据","描述"]
["ADD板上料组装装备","C-PFA-CPPADD-A-BZJG-0001","周期采集",1000,"毫秒","00:00:00-23:59:59","过站明细日志,设备状态数据,过站结果"]

{"sheet":"传感器数据","index":2,"n_rows":3,"n_cols":19,"rows_kept":3,"cut":false,"hidden":false,"merged":[[0,0,0,18]]}
["填写说明\n1.*为必填\n2.设备分类名称：必填，填写内容必须是“设备分类”页面定义或系统中已经存在的设备分类名称\n3.设备分类编码：必填，填写内容必须是“设备分类”页面定义或系统中已经存在的设备分类编码\n4.分类层级：默认四个分类层级，可以不需要填写，如一个上级分类对应多个下级分类需要对上级分类合并单元格\n5.属性名称：必填，不超过30字符\n6.属性ID：必填，不超过300字符，不能重复，如填写的属性ID系统中同一设备分类下已存在无法导入\n7.采集形式：必选，只能输入“周期采集”或“触发采集”，如输入其他内容无法导入\n8.时间单位（采集周期）：如“采集形式”为“周期采集”该数据必选，如“采集形式”为“触发采集”，该数据不需选择，只能选择下拉框中定义的内容，填写其他数据无法导入\n9.采集时段：必填，需要按示意的格式填写“00:00:00-23:59:59”范围的数据\n10.读写类型：必选，只能输入“只读”、“只写”或“读写”，如输入其他内容无法导入\n11.是否数组：必选，只能输入“是”或“否”，如输入其他内容无法导入\n12.标签：非必填，可以填写多个标签，每个标签需要填写标签名称和标签值，标签名称和标签值用冒号分隔，不同标签之间用分号分隔，如“标签1:值;标签2:值”\n13.数据类型：必选，只能输入“Int（整数）”、“Double（小数）”、“Enum（枚举）”、“Bool（布尔）”、“String（字符串）”、“Struct（结构体）”、“Timestamp（时间戳）”\n14.数据定义：“数据类型”为“Int（整数）”、“Double（小数）”、“String（字符串）”、“Timestamp（时间戳）”时非必填，“数据类型”为“Enum（枚举）”、“Bool（布尔）”、“Struct（结构体）”、时数据定义必填，按“数据定义说明中示例格式填写”\n15.数据定义说明：“数据类型”选择不同内容时会显示对应格式的数据定义填写说明，本列用于提示“数据定义”列填写规则，与数据导入内容和校验无关\n16.描述：非必填，不超过100字符\n17.删除示例数据：录入数据时需删除第四行及以下的示例数据"]
[]
["*设备分类名称","*设备分类编码","分类层级1","分类层级2","分类层级3","分类层级4","*属性名称","*属性ID","*采集形式","采集周期","时间单位（默认采集周期）","*采集时段","*读写类型","*是否数组","标签","*数据类型","数据定义","数据定义说明（数据定义列按同行本列提示格式填写）","描述"]

{"sheet":"节拍日志","index":3,"n_rows":9,"n_cols":10,"rows_kept":9,"cut":false,"hidden":false,"merged":[[0,0,0,9],[3,0,8,0],[3,1,8,1],[3,2,8,2],[3,3,8,3],[3,4,8,4]]}
["填写说明\n1.*为必填\n2.设备分类名称：必填，填写内容必须是“设备分类”页面定义或系统中已经存在的设备分类名称\n3.设备分类编码：必填，填写内容必须是“设备分类”页面定义或系统中已经存在的设备分类编码\n4.分类层级：默认四个分类层级，可以不需要填写，如一个上级分类对应多个下级分类需要对上级分类合并单元格\n5.事件名称：必填，不超过30字符\n6.事件ID：必填，不超过300字符，不能重复，如填写的事件ID系统中同一设备分类下已存在无法导入\n7.描述：非必填，不超过100字符\n8.标签：非必填，可以填写多个标签，每个标签需要填写标签名称和标签值，标签名称和标签值用冒号分隔，不同标签之间用分号分隔，如“标签1:值;标签2:值”\n9.删除示例数据：录入数据时需删除第四行及以下的示例数据"]
[]
["*设备分类名称","*设备分类编码","分类层级1","分类层级2","分类层级3","分类层级4","*事件名称","*事件ID","描述","标签"]
["垂直固化炉","垂直固化炉","节拍日志\nbeat_log","业务\nbusiness","设备综合效率\nOEE",null,"上料开始  ","station_input_begin"]
[{"$nulls":6},"上料结束  ","station_input_end"]
[{"$nulls":6},"作业开始 ","station_work_begin"]
[{"$nulls":6},"作业结束  ","station_work_end"]
[{"$nulls":6},"下料开始  ","station_output_begin"]
[{"$nulls":6},"下料结束  ","station_output_end"]

{"sheet":"故障日志","index":4,"n_rows":353,"n_cols":12,"rows_kept":353,"cut":false,"hidden":false,"merged":[]}
["设备分类名称","设备分类编码","分类层级1","分类层级2","分类层级3","分类层级4","事件名称","事件ID","描述","标签","PLC地址","工位"]
["ADD板上料组装装备","C-PFA-CPPADD-A-BZJG-0001","故障日志\n fault_log","电气控制\nelectric_control","故障\n fault","整机模块\n overall_module","AL[1000]_系统_HMI急停触发故障","A40000","AL[1000]_系统_HMI急停触发故障","故障类型：故障fault","fault_codes[0].0"]
["ADD板上料组装装备","C-PFA-CPPADD-A-BZJG-0001","故障日志\n fault_log","电气控制\nelectric_control","故障\n fault","整机模块\n overall_module","AL[1001]_系统_急停1触发-前故障","A40001","AL[1001]_系统_急停1触发-前故障","故障类型：故障fault","fault_codes[0].1"]
["ADD板上料组装装备","C-PFA-CPPADD-A-BZJG-0001","故障日志\n fault_log","电气控制\nelectric_control","故障\n fault","整机模块\n overall_module","AL[1002]_系统_急停2触发-后故障","A40002","AL[1002]_系统_急停2触发-后故障","故障类型：故障fault","fault_codes[0].2"]
["ADD板上料组装装备","C-PFA-CPPADD-A-BZJG-0001","故障日志\n fault_log","电气控制\nelectric_control","故障\n fault","整机模块\n overall_module","AL[1003]_系统_机器人堵转故障","A40003","AL[1003]_系统_机器人堵转故障","故障类型：故障fault","fault_codes[0].3"]
["ADD板上料组装装备","C-PFA-CPPADD-A-BZJG-0001","故障日志\n fault_log","电气控制\nelectric_control","故障\n fault","整机模块\n overall_module","AL[1004]_系统_XX故障","A40004","AL[1004]_系统_XX故障","故障类型：故障fault","fault_codes[0].4"]
["ADD板上料组装装备","C-PFA-CPPADD-A-BZJG-0001","故障日志\n fault_log","电气控制\nelectric_control","故障\n fault","整机模块\n overall_module","AL[1005]_系统_XX故障","A40005","AL[1005]_系统_XX故障","故障类型：故障fault","fault_codes[0].5"]
["ADD板上料组装装备","C-PFA-CPPADD-A-BZJG-0001","故障日志\n fault_log","电气控制\nelectric_control","故障\n fault","整机模块\n overall_module","AL[1006]_系统_XX故障","A40006","AL[1006]_系统_XX故障","故障类型：故障fault","fault_codes[0].6"]
["ADD板上料组装装备","C-PFA-CPPADD-A-BZJG-0001","故障日志\n fault_log","电气控制\nelectric_control","故障\n fault","整机模块\n overall_module","AL[1007]_系统_XX故障","A40007","AL[1007]_系统_XX故障","故障类型：故障fault","fault_codes[0].7"]
["ADD板上料组装装备","C-PFA-CPPADD-A-BZJG-0001","故障日志\n fault_log","电气控制\nelectric_control","故障\n fault","整机模块\n overall_module","AL[1008]_系统_XX故障","A40008","AL[1008]_系统_XX故障","故障类型：故障fault","fault_codes[0].8"]
["ADD板上料组装装备","C-PFA-CPPADD-A-BZJG-0001","故障日志\n fault_log","电气控制\nelectric_control","故障\n fault","整机模块\n overall_module","AL[1009]_系统_XX故障","A40009","AL[1009]_系统_XX故障","故障类型：故障fault","fault_codes[0].9"]
["ADD板上料组装装备","C-PFA-CPPADD-A-BZJG-0001","故障日志\n fault_log","电气控制\nelectric_control","故障\n fault","整机模块\n overall_module","AL[1010]_系统_XX故障","A40010","AL[1010]_系统_XX故障","故障类型：故障fault","fault_codes[0].10"]
["ADD板上料组装装备","C-PFA-CPPADD-A-BZJG-0001","故障日志\n fault_log","电气控制\nelectric_control","故障\n fault","整机模块\n overall_module","AL[1011]_系统_XX故障","A40011","AL[1011]_系统_XX故障","故障类型：故障fault","fault_codes[0].11"]
["ADD板上料组装装备","C-PFA-CPPADD-A-BZJG-0001","故障日志\n fault_log","电气控制\nelectric_control","故障\n fault","整机模块\n overall_module","AL[1012]_系统_XX故障","A40012","AL[1012]_系统_XX故障","故障类型：故障fault","fault_codes[0].12"]
["ADD板上料组装装备","C-PFA-CPPADD-A-BZJG-0001","故障日志\n fault_log","电气控制\nelectric_control","故障\n fault","整机模块\n overall_module","AL[1013]_系统_XX故障","A40013","AL[1013]_系统_XX故障","故障类型：故障fault","fault_codes[0].13"]
["ADD板上料组装装备","C-PFA-CPPADD-A-BZJG-0001","故障日志\n fault_log","电气控制\nelectric_control","故障\n fault","整机模块\n overall_module","AL[1014]_系统_XX故障","A40014","AL[1014]_系统_XX故障","故障类型：故障fault","fault_codes[0].14"]
["ADD板上料组装装备","C-PFA-CPPADD-A-BZJG-0001","故障日志\n fault_log","电气控制\nelectric_control","故障\n fault","整机模块\n overall_module","AL[1015]_系统_XX故障","A40015","AL[1015]_系统_XX故障","故障类型：故障fault","fault_codes[0].15"]
["ADD板上料组装装备","C-PFA-CPPADD-A-BZJG-0001","故障日志\n fault_log","电气控制\nelectric_control","故障\n fault","整机模块\n overall_module","AL[1016]_系统_XX故障","A40016","AL[1016]_系统_XX故障","故障类型：故障fault","fault_codes[0].16"]
["ADD板上料组装装备","C-PFA-CPPADD-A-BZJG-0001","故障日志\n fault_log","电气控制\nelectric_control","故障\n fault","整机模块\n overall_module","AL[1017]_系统_XX故障","A40017","AL[1017]_系统_XX故障","故障类型：故障fault","fault_codes[0].17"]
["ADD板上料组装装备","C-PFA-CPPADD-A-BZJG-0001","故障日志\n fault_log","电气控制\nelectric_control","故障\n fault","整机模块\n overall_module","AL[1018]_系统_XX故障","A40018","AL[1018]_系统_XX故障","故障类型：故障fault","fault_codes[0].18"]
["ADD板上料组装装备","C-PFA-CPPADD-A-BZJG-0001","故障日志\n fault_log","电气控制\nelectric_control","故障\n fault","整机模块\n overall_module","AL[1019]_系统_XX故障","A40019","AL[1019]_系统_XX故障","故障类型：故障fault","fault_codes[0].19"]
["ADD板上料组装装备","C-PFA-CPPADD-A-BZJG-0001","故障日志\n fault_log","电气控制\nelectric_control","故障\n fault","整机模块\n overall_module","AL[1020]_系统_XX故障","A40020","AL[1020]_系统_XX故障","故障类型：故障fault","fault_codes[0].20"]
["ADD板上料组装装备","C-PFA-CPPADD-A-BZJG-0001","故障日志\n fault_log","电气控制\nelectric_control","故障\n fault","整机模块\n overall_module","AL[1021]_系统_XX故障","A40021","AL[1021]_系统_XX故障","故障类型：故障fault","fault_codes[0].21"]
["ADD板上料组装装备","C-PFA-CPPADD-A-BZJG-0001","故障日志\n fault_log","电气控制\nelectric_control","故障\n fault","整机模块\n overall_module","AL[1022]_系统_XX故障","A40022","AL[1022]_系统_XX故障","故障类型：故障fault","fault_codes[0].22"]
["ADD板上料组装装备","C-PFA-CPPADD-A-BZJG-0001","故障日志\n fault_log","电气控制\nelectric_control","故障\n fault","整机模块\n overall_module","AL[1023]_系统_XX故障","A40023","AL[1023]_系统_XX故障","故障类型：故障fault","fault_codes[0].23"]
["ADD板上料组装装备","C-PFA-CPPADD-A-BZJG-0001","故障日志\n fault_log","电气控制\nelectric_control","故障\n fault","整机模块\n overall_module","AL[1024]_系统_XX故障","A40024","AL[1024]_系统_XX故障","故障类型：故障fault","fault_codes[0].24"]
["ADD板上料组装装备","C-PFA-CPPADD-A-BZJG-0001","故障日志\n fault_log","电气控制\nelectric_control","故障\n fault","整机模块\n overall_module","AL[1025]_系统_XX故障","A40025","AL[1025]_系统_XX故障","故障类型：故障fault","fault_codes[0].25"]
["ADD板上料组装装备","C-PFA-CPPADD-A-BZJG-0001","故障日志\n fault_log","电气控制\nelectric_control","故障\n fault","整机模块\n overall_module","AL[1026]_系统_XX故障","A40026","AL[1026]_系统_XX故障","故障类型：故障fault","fault_codes[0].26"]
["ADD板上料组装装备","C-PFA-CPPADD-A-BZJG-0001","故障日志\n fault_log","电气控制\nelectric_control","故障\n fault","整机模块\n overall_module","AL[1027]_系统_XX故障","A40027","AL[1027]_系统_XX故障","故障类型：故障fault","fault_codes[0].27"]
["ADD板上料组装装备","C-PFA-CPPADD-A-BZJG-0001","故障日志\n fault_log","电气控制\nelectric_control","故障\n fault","整机模块\n overall_module","AL[1028]_系统_XX故障","A40028","AL[1028]_系统_XX故障","故障类型：故障fault","fault_codes[0].28"]
["ADD板上料组装装备","C-PFA-CPPADD-A-BZJG-0001","故障日志\n fault_log","电气控制\nelectric_control","故障\n fault","整机模块\n overall_module","AL[1029]_系统_XX故障","A40029","AL[1029]_系统_XX故障","故障类型：故障fault","fault_codes[0].29"]
["ADD板上料组装装备","C-PFA-CPPADD-A-BZJG-0001","故障日志\n fault_log","电气控制\nelectric_control","故障\n fault","整机模块\n overall_module","AL[1030]_系统_XX故障","A40030","AL[1030]_系统_XX故障","故障类型：故障fault","fault_codes[0].30"]
["ADD板上料组装装备","C-PFA-CPPADD-A-BZJG-0001","故障日志\n fault_log","电气控制\nelectric_control","故障\n fault","整机模块\n overall_module","AL[1031]_系统_XX故障","A40031","AL[1031]_系统_XX故障","故障类型：故障fault","fault_codes[0].31"]
["ADD板上料组装装备","C-PFA-CPPADD-A-BZJG-0001","故障日志\n fault_log","电气控制\nelectric_control","警报\nalarm","作业模块\n work_module","AL[0]_机器人_初始化超时警报","B40001","AL[0]_机器人_初始化超时警报","故障类型：警报alarm","fault_codes[1].0"]
["ADD板上料组装装备","C-PFA-CPPADD-A-BZJG-0001","故障日志\n fault_log","电气控制\nelectric_control","警报\nalarm","作业模块\n work_module","AL[1]_机器人_运行超时警报","B40002","AL[1]_机器人_运行超时警报","故障类型：警报alarm","fault_codes[1].1"]
["ADD板上料组装装备","C-PFA-CPPADD-A-BZJG-0001","故障日志\n fault_log","电气控制\nelectric_control","警报\nalarm","作业模块\n work_module","AL[2]_机器人_气缸上警报","B40003","AL[2]_机器人_气缸上警报","故障类型：警报alarm","fault_codes[1].2"]
["ADD板上料组装装备","C-PFA-CPPADD-A-BZJG-0001","故障日志\n fault_log","电气控制\nelectric_control","警报\nalarm","作业模块\n work_module","AL[3]_机器人_气缸下警报","B40004","AL[3]_机器人_气缸下警报","故障类型：警报alarm","fault_codes[1].3"]
["ADD板上料组装装备","C-PFA-CPPADD-A-BZJG-0001","故障日志\n fault_log","电气控制\nelectric_control","警报\nalarm","作业模块\n work_module","AL[4]_机器人_防掉气缸伸出警报","B40005","AL[4]_机器人_防掉气缸伸出警报","故障类型：警报alarm","fault_codes[1].4"]
["ADD板上料组装装备","C-PFA-CPPADD-A-BZJG-0001","故障日志\n fault_log","电气控制\nelectric_control","警报\nalarm","作业模块\n work_module","AL[5]_机器人_防掉气缸缩回警报","B40006","AL[5]_机器人_防掉气缸缩回警报","故障类型：警报alarm","fault_codes[1].5"]
["ADD板上料组装装备","C-PFA-CPPADD-A-BZJG-0001","故障日志\n fault_log","电气控制\nelectric_control","警报\nalarm","作业模块\n work_module","AL[6]_机器人_真空1警报","B40007","AL[6]_机器人_真空1警报","故障类型：警报alarm","fault_codes[1].6"]
["ADD板上料组装装备","C-PFA-CPPADD-A-BZJG-0001","故障日志\n fault_log","电气控制\nelectric_control","警报\nalarm","作业模块\n work_module","AL[7]_机器人_真空2警报","B40008","AL[7]_机器人_真空2警报","故障类型：警报alarm","fault_codes[1].7"]
["ADD板上料组装装备","C-PFA-CPPADD-A-BZJG-0001","故障日志\n fault_log","电气控制\nelectric_control","警报\nalarm","作业模块\n work_module","AL[8]_机器人_XX警报","B40009","AL[8]_机器人_XX警报","故障类型：警报alarm","fault_codes[1].8"]
["ADD板上料组装装备","C-PFA-CPPADD-A-BZJG-0001","故障日志\n fault_log","电气控制\nelectric_control","警报\nalarm","作业模块\n work_module","AL[9]_机器人_XX警报","B40010","AL[9]_机器人_XX警报","故障类型：警报alarm","fault_codes[1].9"]
["ADD板上料组装装备","C-PFA-CPPADD-A-BZJG-0001","故障日志\n fault_log","电气控制\nelectric_control","警报\nalarm","作业模块\n work_module","AL[10]_机器人_XX警报","B40011","AL[10]_机器人_XX警报","故障类型：警报alarm","fault_codes[1].10"]
["ADD板上料组装装备","C-PFA-CPPADD-A-BZJG-0001","故障日志\n fault_log","电气控制\nelectric_control","警报\nalarm","作业模块\n work_module","AL[11]_机器人_XX警报","B40012","AL[11]_机器人_XX警报","故障类型：警报alarm","fault_codes[1].11"]
["ADD板上料组装装备","C-PFA-CPPADD-A-BZJG-0001","故障日志\n fault_log","电气控制\nelectric_control","警报\nalarm","作业模块\n work_module","AL[12]_机器人_XX警报","B40013","AL[12]_机器人_XX警报","故障类型：警报alarm","fault_codes[1].12"]
["ADD板上料组装装备","C-PFA-CPPADD-A-BZJG-0001","故障日志\n fault_log","电气控制\nelectric_control","警报\nalarm","作业模块\n work_module","AL[13]_机器人_XX警报","B40014","AL[13]_机器人_XX警报","故障类型：警报alarm","fault_codes[1].13"]
["ADD板上料组装装备","C-PFA-CPPADD-A-BZJG-0001","故障日志\n fault_log","电气控制\nelectric_control","警报\nalarm","作业模块\n work_module","AL[14]_机器人_XX警报","B40015","AL[14]_机器人_XX警报","故障类型：警报alarm","fault_codes[1].14"]
["ADD板上料组装装备","C-PFA-CPPADD-A-BZJG-0001","故障日志\n fault_log","电气控制\nelectric_control","警报\nalarm","作业模块\n work_module","AL[15]_机器人_XX警报","B40016","AL[15]_机器人_XX警报","故障类型：警报alarm","fault_codes[1].15"]
["ADD板上料组装装备","C-PFA-CPPADD-A-BZJG-0001","故障日志\n fault_log","电气控制\nelectric_control","警报\nalarm","作业模块\n work_module","AL[16]_机器人_XX警报","B40017","AL[16]_机器人_XX警报","故障类型：警报alarm","fault_codes[1].16"]
["ADD板上料组装装备","C-PFA-CPPADD-A-BZJG-0001","故障日志\n fault_log","电气控制\nelectric_control","警报\nalarm","作业模块\n work_module","AL[17]_机器人_XX警报","B40018","AL[17]_机器人_XX警报","故障类型：警报alarm","fault_codes[1].17"]
["ADD板上料组装装备","C-PFA-CPPADD-A-BZJG-0001","故障日志\n fault_log","电气控制\nelectric_control","警报\nalarm","作业模块\n work_module","AL[18]_机器人_XX警报","B40019","AL[18]_机器人_XX警报","故障类型：警报alarm","fault_codes[1].18"]
["ADD板上料组装装备","C-PFA-CPPADD-A-BZJG-0001","故障日志\n fault_log","电气控制\nelectric_control","警报\nalarm","作业模块\n work_module","AL[19]_机器人_XX警报","B40020","AL[19]_机器人_XX警报","故障类型：警报alarm","fault_codes[1].19"]
["ADD板上料组装装备","C-PFA-CPPADD-A-BZJG-0001","故障日志\n fault_log","电气控制\nelectric_control","警报\nalarm","作业模块\n work_module","AL[20]_机器人_XX警报","B40021","AL[20]_机器人_XX警报","故障类型：警报alarm","fault_codes[1].20"]
["ADD板上料组装装备","C-PFA-CPPADD-A-BZJG-0001","故障日志\n fault_log","电气控制\nelectric_control","警报\nalarm","作业模块\n work_module","AL[21]_机器人_XX警报","B40022","AL[21]_机器人_XX警报","故障类型：警报alarm","fault_codes[1].21"]
["ADD板上料组装装备","C-PFA-CPPADD-A-BZJG-0001","故障日志\n fault_log","电气控制\nelectric_control","警报\nalarm","作业模块\n work_module","AL[22]_机器人_XX警报","B40023","AL[22]_机器人_XX警报","故障类型：警报alarm","fault_codes[1].22"]
["ADD板上料组装装备","C-PFA-CPPADD-A-BZJG-0001","故障日志\n fault_log","电气控制\nelectric_control","警报\nalarm","作业模块\n work_module","AL[23]_机器人_XX警报","B40024","AL[23]_机器人_XX警报","故障类型：警报alarm","fault_codes[1].23"]
["ADD板上料组装装备","C-PFA-CPPADD-A-BZJG-0001","故障日志\n fault_log","电气控制\nelectric_control","警报\nalarm","作业模块\n work_module","AL[24]_机器人_XX警报","B40025","AL[24]_机器人_XX警报","故障类型：警报alarm","fault_codes[1].24"]
["ADD板上料组装装备","C-PFA-CPPADD-A-BZJG-0001","故障日志\n fault_log","电气控制\nelectric_control","警报\nalarm","作业模块\n work_module","AL[25]_机器人_XX警报","B40026","AL[25]_机器人_XX警报","故障类型：警报alarm","fault_codes[1].25"]
["ADD板上料组装装备","C-PFA-CPPADD-A-BZJG-0001","故障日志\n fault_log","电气控制\nelectric_control","警报\nalarm","作业模块\n work_module","AL[26]_机器人_XX警报","B40027","AL[26]_机器人_XX警报","故障类型：警报alarm","fault_codes[1].26"]
["ADD板上料组装装备","C-PFA-CPPADD-A-BZJG-0001","故障日志\n fault_log","电气控制\nelectric_control","警报\nalarm","作业模块\n work_module","AL[27]_机器人_XX警报","B40028","AL[27]_机器人_XX警报","故障类型：警报alarm","fault_codes[1].27"]
["ADD板上料组装装备","C-PFA-CPPADD-A-BZJG-0001","故障日志\n fault_log","电气控制\nelectric_control","警报\nalarm","作业模块\n work_module","AL[28]_机器人_XX警报","B40029","AL[28]_机器人_XX警报","故障类型：警报alarm","fault_codes[1].28"]
["ADD板上料组装装备","C-PFA-CPPADD-A-BZJG-0001","故障日志\n fault_log","电气控制\nelectric_control","警报\nalarm","作业模块\n work_module","AL[29]_机器人_XX警报","B40030","AL[29]_机器人_XX警报","故障类型：警报alarm","fault_codes[1].29"]
["ADD板上料组装装备","C-PFA-CPPADD-A-BZJG-0001","故障日志\n fault_log","电气控制\nelectric_control","警报\nalarm","作业模块\n work_module","AL[30]_机器人_XX警报","B40031","AL[30]_机器人_XX警报","故障类型：警报alarm","fault_codes[1].30"]
["ADD板上料组装装备","C-PFA-CPPADD-A-BZJG-0001","故障日志\n fault_log","电气控制\nelectric_control","警报\nalarm","作业模块\n work_module","AL[31]_机器人_XX警报","B40032","AL[31]_机器人_XX警报","故障类型：警报alarm","fault_codes[1].31"]
["ADD板上料组装装备","C-PFA-CPPADD-A-BZJG-0001","故障日志\n fault_log","电气控制\nelectric_control","警报\nalarm","作业模块\n work_module","AL[32]_作业线_初始化超时警报","B40033","AL[32]_作业线_初始化超时警报","故障类型：警报alarm","fault_codes[2].0"]
["ADD板上料组装装备","C-PFA-CPPADD-A-BZJG-0001","故障日志\n fault_log","电气控制\nelectric_control","警报\nalarm","作业模块\n work_module","AL[33]_作业线_运行超时警报","B40034","AL[33]_作业线_运行超时警报","故障类型：警报alarm","fault_codes[2].1"]
["ADD板上料组装装备","C-PFA-CPPADD-A-BZJG-0001","故障日志\n fault_log","电气控制\nelectric_control","警报\nalarm","作业模块\n work_module","AL[34]_作业线_扫码枪未扫到载具码警报","B40035","AL[34]_作业线_扫码枪未扫到载具码警报","故障类型：警报alarm","fault_codes[2].2"]
["ADD板上料组装装备","C-PFA-CPPADD-A-BZJG-0001","故障日志\n fault_log","电气控制\nelectric_control","警报\nalarm","作业模块\n work_module","AL[35]_作业线_顶升上警报","B40036","AL[35]_作业线_顶升上警报","故障类型：警报alarm","fault_codes[2].3"]
["ADD板上料组装装备","C-PFA-CPPADD-A-BZJG-0001","故障日志\n fault_log","电气控制\nelectric_control","警报\nalarm","作业模块\n work_module","AL[36]_作业线_顶升下警报","B40037","AL[36]_作业线_顶升下警报","故障类型：警报alarm","fault_codes[2].4"]
["ADD板上料组装装备","C-PFA-CPPADD-A-BZJG-0001","故障日志\n fault_log","电气控制\nelectric_control","警报\nalarm","作业模块\n work_module","AL[37]_作业线_NG台有料警报","B40038","AL[37]_作业线_NG台有料警报","故障类型：警报alarm","fault_codes[2].5"]
["ADD板上料组装装备","C-PFA-CPPADD-A-BZJG-0001","故障日志\n fault_log","电气控制\nelectric_control","警报\nalarm","作业模块\n work_module","AL[38]_作业线_XX警报","B40039","AL[38]_作业线_XX警报","故障类型：警报alarm","fault_codes[2].6"]
["ADD板上料组装装备","C-PFA-CPPADD-A-BZJG-0001","故障日志\n fault_log","电气控制\nelectric_control","警报\nalarm","作业模块\n work_module","AL[39]_作业线_XX警报","B40040","AL[39]_作业线_XX警报","故障类型：警报alarm","fault_codes[2].7"]
["ADD板上料组装装备","C-PFA-CPPADD-A-BZJG-0001","故障日志\n fault_log","电气控制\nelectric_control","警报\nalarm","作业模块\n work_module","AL[40]_作业线_XX警报","B40041","AL[40]_作业线_XX警报","故障类型：警报alarm","fault_codes[2].8"]
["ADD板上料组装装备","C-PFA-CPPADD-A-BZJG-0001","故障日志\n fault_log","电气控制\nelectric_control","警报\nalarm","作业模块\n work_module","AL[41]_作业线_XX警报","B40042","AL[41]_作业线_XX警报","故障类型：警报alarm","fault_codes[2].9"]
["ADD板上料组装装备","C-PFA-CPPADD-A-BZJG-0001","故障日志\n fault_log","电气控制\nelectric_control","警报\nalarm","作业模块\n work_module","AL[42]_作业线_XX警报","B40043","AL[42]_作业线_XX警报","故障类型：警报alarm","fault_codes[2].10"]
["ADD板上料组装装备","C-PFA-CPPADD-A-BZJG-0001","故障日志\n fault_log","电气控制\nelectric_control","警报\nalarm","作业模块\n work_module","AL[43]_作业线_XX警报","B40044","AL[43]_作业线_XX警报","故障类型：警报alarm","fault_codes[2].11"]
["ADD板上料组装装备","C-PFA-CPPADD-A-BZJG-0001","故障日志\n fault_log","电气控制\nelectric_control","警报\nalarm","作业模块\n work_module","AL[44]_作业线_XX警报","B40045","AL[44]_作业线_XX警报","故障类型：警报alarm","fault_codes[2].12"]
["ADD板上料组装装备","C-PFA-CPPADD-A-BZJG-0001","故障日志\n fault_log","电气控制\nelectric_control","警报\nalarm","作业模块\n work_module","AL[45]_作业线_XX警报","B40046","AL[45]_作业线_XX警报","故障类型：警报alarm","fault_codes[2].13"]
["ADD板上料组装装备","C-PFA-CPPADD-A-BZJG-0001","故障日志\n fault_log","电气控制\nelectric_control","警报\nalarm","作业模块\n work_module","AL[46]_作业线_XX警报","B40047","AL[46]_作业线_XX警报","故障类型：警报alarm","fault_codes[2].14"]
["ADD板上料组装装备","C-PFA-CPPADD-A-BZJG-0001","故障日志\n fault_log","电气控制\nelectric_control","警报\nalarm","作业模块\n work_module","AL[47]_作业线_XX警报","B40048","AL[47]_作业线_XX警报","故障类型：警报alarm","fault_codes[2].15"]
["ADD板上料组装装备","C-PFA-CPPADD-A-BZJG-0001","故障日志\n fault_log","电气控制\nelectric_control","警报\nalarm","作业模块\n work_module","AL[48]_作业线_XX警报","B40049","AL[48]_作业线_XX警报","故障类型：警报alarm","fault_codes[2].16"]
["ADD板上料组装装备","C-PFA-CPPADD-A-BZJG-0001","故障日志\n fault_log","电气控制\nelectric_control","警报\nalarm","作业模块\n work_module","AL[49]_作业线_XX警报","B40050","AL[49]_作业线_XX警报","故障类型：警报alarm","fault_codes[2].17"]
["ADD板上料组装装备","C-PFA-CPPADD-A-BZJG-0001","故障日志\n fault_log","电气控制\nelectric_control","警报\nalarm","作业模块\n work_module","AL[50]_作业线_XX警报","B40051","AL[50]_作业线_XX警报","故障类型：警报alarm","fault_codes[2].18"]
["ADD板上料组装装备","C-PFA-CPPADD-A-BZJG-0001","故障日志\n fault_log","电气控制\nelectric_control","警报\nalarm","作业模块\n work_module","AL[51]_作业线_XX警报","B40052","AL[51]_作业线_XX警报","故障类型：警报alarm","fault_codes[2].19"]
["ADD板上料组装装备","C-PFA-CPPADD-A-BZJG-0001","故障日志\n fault_log","电气控制\nelectric_control","警报\nalarm","作业模块\n work_module","AL[52]_作业线_XX警报","B40053","AL[52]_作业线_XX警报","故障类型：警报alarm","fault_codes[2].20"]
["ADD板上料组装装备","C-PFA-CPPADD-A-BZJG-0001","故障日志\n fault_log","电气控制\nelectric_control","警报\nalarm","作业模块\n work_module","AL[53]_作业线_XX警报","B40054","AL[53]_作业线_XX警报","故障类型：警报alarm","fault_codes[2].21"]
["ADD板上料组装装备","C-PFA-CPPADD-A-BZJG-0001","故障日志\n fault_log","电气控制\nelectric_control","警报\nalarm","作业模块\n work_module","AL[54]_作业线_XX警报","B40055","AL[54]_作业线_XX警报","故障类型：警报alarm","fault_codes[2].22"]
["ADD板上料组装装备","C-PFA-CPPADD-A-BZJG-0001","故障日志\n fault_log","电气控制\nelectric_control","警报\nalarm","作业模块\n work_module","AL[55]_作业线_XX警报","B40056","AL[55]_作业线_XX警报","故障类型：警报alarm","fault_codes[2].23"]
["ADD板上料组装装备","C-PFA-CPPADD-A-BZJG-0001","故障日志\n fault_log","电气控制\nelectric_control","警报\nalarm","作业模块\n work_module","AL[56]_作业线_XX警报","B40057","AL[56]_作业线_XX警报","故障类型：警报alarm","fault_codes[2].24"]
["ADD板上料组装装备","C-PFA-CPPADD-A-BZJG-0001","故障日志\n fault_log","电气控制\nelectric_control","警报\nalarm","作业模块\n work_module","AL[57]_作业线_XX警报","B40058","AL[57]_作业线_XX警报","故障类型：警报alarm","fault_codes[2].25"]
["ADD板上料组装装备","C-PFA-CPPADD-A-BZJG-0001","故障日志\n fault_log","电气控制\nelectric_control","警报\nalarm","作业模块\n work_module","AL[58]_作业线_XX警报","B40059","AL[58]_作业线_XX警报","故障类型：警报alarm","fault_codes[2].26"]
["ADD板上料组装装备","C-PFA-CPPADD-A-BZJG-0001","故障日志\n fault_log","电气控制\nelectric_control","警报\nalarm","作业模块\n work_module","AL[59]_作业线_XX警报","B40060","AL[59]_作业线_XX警报","故障类型：警报alarm","fault_codes[2].27"]
["ADD板上料组装装备","C-PFA-CPPADD-A-BZJG-0001","故障日志\n fault_log","电气控制\nelectric_control","警报\nalarm","作业模块\n work_module","AL[60]_作业线_XX警报","B40061","AL[60]_作业线_XX警报","故障类型：警报alarm","fault_codes[2].28"]
["ADD板上料组装装备","C-PFA-CPPADD-A-BZJG-0001","故障日志\n fault_log","电气控制\nelectric_control","警报\nalarm","作业模块\n work_module","AL[61]_作业线_XX警报","B40062","AL[61]_作业线_XX警报","故障类型：警报alarm","fault_codes[2].29"]
["ADD板上料组装装备","C-PFA-CPPADD-A-BZJG-0001","故障日志\n fault_log","电气控制\nelectric_control","警报\nalarm","作业模块\n work_module","AL[62]_作业线_XX警报","B40063","AL[62]_作业线_XX警报","故障类型：警报alarm","fault_codes[2].30"]
["ADD板上料组装装备","C-PFA-CPPADD-A-BZJG-0001","故障日志\n fault_log","电气控制\nelectric_control","警报\nalarm","作业模块\n work_module","AL[63]_作业线_XX警报","B40064","AL[63]_作业线_XX警报","故障类型：警报alarm","fault_codes[2].31"]
["ADD板上料组装装备","C-PFA-CPPADD-A-BZJG-0001","故障日志\n fault_log","电气控制\nelectric_control","警报\nalarm","流水线模块\n line_module","AL[64]_回流线_初始化超时警报","B40065","AL[64]_回流线_初始化超时警报","故障类型：警报alarm","fault_codes[3].0"]
["ADD板上料组装装备","C-PFA-CPPADD-A-BZJG-0001","故障日志\n fault_log","电气控制\nelectric_control","警报\nalarm","流水线模块\n line_module","AL[65]_回流线_运行超时警报","B40066","AL[65]_回流线_运行超时警报","故障类型：警报alarm","fault_codes[3].1"]
["ADD板上料组装装备","C-PFA-CPPADD-A-BZJG-0001","故障日志\n fault_log","电气控制\nelectric_control","警报\nalarm","供料模块\n feed_module","AL[66]_回流线_XX警报","B40067","AL[66]_回流线_XX警报","故障类型：警报alarm","fault_codes[3].2"]
["ADD板上料组装装备","C-PFA-CPPADD-A-BZJG-0001","故障日志\n fault_log","电气控制\nelectric_control","警报\nalarm","流水线模块\n line_module","AL[67]_回流线_XX警报","B40068","AL[67]_回流线_XX警报","故障类型：警报alarm","fault_codes[3].3"]
["ADD板上料组装装备","C-PFA-CPPADD-A-BZJG-0001","故障日志\n fault_log","电气控制\nelectric_control","警报\nalarm","流水线模块\n line_module","AL[68]_回流线_XX警报","B40069","AL[68]_回流线_XX警报","故障类型：警报alarm","fault_codes[3].4"]
["ADD板上料组装装备","C-PFA-CPPADD-A-BZJG-0001","故障日志\n fault_log","电气控制\nelectric_control","警报\nalarm","流水线模块\n line_module","AL[69]_回流线_XX警报","B40070","AL[69]_回流线_XX警报","故障类型：警报alarm","fault_codes[3].5"]
["ADD板上料组装装备","C-PFA-CPPADD-A-BZJG-0001","故障日志\n fault_log","电气控制\nelectric_control","警报\nalarm","流水线模块\n line_module","AL[70]_回流线_XX警报","B40071","AL[70]_回流线_XX警报","故障类型：警报alarm","fault_codes[3].6"]
["ADD板上料组装装备","C-PFA-CPPADD-A-BZJG-0001","故障日志\n fault_log","电气控制\nelectric_control","警报\nalarm","流水线模块\n line_module","AL[71]_回流线_XX警报","B40072","AL[71]_回流线_XX警报","故障类型：警报alarm","fault_codes[3].7"]
["ADD板上料组装装备","C-PFA-CPPADD-A-BZJG-0001","故障日志\n fault_log","电气控制\nelectric_control","警报\nalarm","流水线模块\n line_module","AL[72]_回流线_XX警报","B40073","AL[72]_回流线_XX警报","故障类型：警报alarm","fault_codes[3].8"]
["ADD板上料组装装备","C-PFA-CPPADD-A-BZJG-0001","故障日志\n fault_log","电气控制\nelectric_control","警报\nalarm","流水线模块\n line_module","AL[73]_回流线_XX警报","B40074","AL[73]_回流线_XX警报","故障类型：警报alarm","fault_codes[3].9"]
["ADD板上料组装装备","C-PFA-CPPADD-A-BZJG-0001","故障日志\n fault_log","电气控制\nelectric_control","警报\nalarm","流水线模块\n line_module","AL[74]_回流线_XX警报","B40075","AL[74]_回流线_XX警报","故障类型：警报alarm","fault_codes[3].10"]
["ADD板上料组装装备","C-PFA-CPPADD-A-BZJG-0001","故障日志\n fault_log","电气控制\nelectric_control","警报\nalarm","流水线模块\n line_module","AL[75]_回流线_XX警报","B40076","AL[75]_回流线_XX警报","故障类型：警报alarm","fault_codes[3].11"]
["ADD板上料组装装备","C-PFA-CPPADD-A-BZJG-0001","故障日志\n fault_log","电气控制\nelectric_control","警报\nalarm","流水线模块\n line_module","AL[76]_回流线_XX警报","B40077","AL[76]_回流线_XX警报","故障类型：警报alarm","fault_codes[3].12"]
["ADD板上料组装装备","C-PFA-CPPADD-A-BZJG-0001","故障日志\n fault_log","电气控制\nelectric_control","警报\nalarm","流水线模块\n line_module","AL[77]_回流线_XX警报","B40078","AL[77]_回流线_XX警报","故障类型：警报alarm","fault_codes[3].13"]
["ADD板上料组装装备","C-PFA-CPPADD-A-BZJG-0001","故障日志\n fault_log","电气控制\nelectric_control","警报\nalarm","流水线模块\n line_module","AL[78]_回流线_XX警报","B40079","AL[78]_回流线_XX警报","故障类型：警报alarm","fault_codes[3].14"]
["ADD板上料组装装备","C-PFA-CPPADD-A-BZJG-0001","故障日志\n fault_log","电气控制\nelectric_control","警报\nalarm","流水线模块\n line_module","AL[79]_回流线_XX警报","B40080","AL[79]_回流线_XX警报","故障类型：警报alarm","fault_codes[3].15"]
["ADD板上料组装装备","C-PFA-CPPADD-A-BZJG-0001","故障日志\n fault_log","电气控制\nelectric_control","警报\nalarm","流水线模块\n line_module","AL[80]_回流线_XX警报","B40081","AL[80]_回流线_XX警报","故障类型：警报alarm","fault_codes[3].16"]
["ADD板上料组装装备","C-PFA-CPPADD-A-BZJG-0001","故障日志\n fault_log","电气控制\nelectric_control","警报\nalarm","流水线模块\n line_module","AL[81]_回流线_XX警报","B40082","AL[81]_回流线_XX警报","故障类型：警报alarm","fault_codes[3].17"]
["ADD板上料组装装备","C-PFA-CPPADD-A-BZJG-0001","故障日志\n fault_log","电气控制\nelectric_control","警报\nalarm","流水线模块\n line_module","AL[82]_回流线_XX警报","B40083","AL[82]_回流线_XX警报","故障类型：警报alarm","fault_codes[3].18"]
["ADD板上料组装装备","C-PFA-CPPADD-A-BZJG-0001","故障日志\n fault_log","电气控制\nelectric_control","警报\nalarm","流水线模块\n line_module","AL[83]_回流线_XX警报","B40084","AL[83]_回流线_XX警报","故障类型：警报alarm","fault_codes[3].19"]
["ADD板上料组装装备","C-PFA-CPPADD-A-BZJG-0001","故障日志\n fault_log","电气控制\nelectric_control","警报\nalarm","流水线模块\n line_module","AL[84]_回流线_XX警报","B40085","AL[84]_回流线_XX警报","故障类型：警报alarm","fault_codes[3].20"]
["ADD板上料组装装备","C-PFA-CPPADD-A-BZJG-0001","故障日志\n fault_log","电气控制\nelectric_control","警报\nalarm","流水线模块\n line_module","AL[85]_回流线_XX警报","B40086","AL[85]_回流线_XX警报","故障类型：警报alarm","fault_codes[3].21"]
["ADD板上料组装装备","C-PFA-CPPADD-A-BZJG-0001","故障日志\n fault_log","电气控制\nelectric_control","警报\nalarm","流水线模块\n line_module","AL[86]_回流线_XX警报","B40087","AL[86]_回流线_XX警报","故障类型：警报alarm","fault_codes[3].22"]
["ADD板上料组装装备","C-PFA-CPPADD-A-BZJG-0001","故障日志\n fault_log","电气控制\nelectric_control","警报\nalarm","流水线模块\n line_module","AL[87]_回流线_XX警报","B40088","AL[87]_回流线_XX警报","故障类型：警报alarm","fault_codes[3].23"]
["ADD板上料组装装备","C-PFA-CPPADD-A-BZJG-0001","故障日志\n fault_log","电气控制\nelectric_control","警报\nalarm","流水线模块\n line_module","AL[88]_回流线_XX警报","B40089","AL[88]_回流线_XX警报","故障类型：警报alarm","fault_codes[3].24"]
["ADD板上料组装装备","C-PFA-CPPADD-A-BZJG-0001","故障日志\n fault_log","电气控制\nelectric_control","警报\nalarm","流水线模块\n line_module","AL[89]_回流线_XX警报","B40090","AL[89]_回流线_XX警报","故障类型：警报alarm","fault_codes[3].25"]
["ADD板上料组装装备","C-PFA-CPPADD-A-BZJG-0001","故障日志\n fault_log","电气控制\nelectric_control","警报\nalarm","流水线模块\n line_module","AL[90]_回流线_XX警报","B40091","AL[90]_回流线_XX警报","故障类型：警报alarm","fault_codes[3].26"]
["ADD板上料组装装备","C-PFA-CPPADD-A-BZJG-0001","故障日志\n fault_log","电气控制\nelectric_control","警报\nalarm","流水线模块\n line_module","AL[91]_回流线_XX警报","B40092","AL[91]_回流线_XX警报","故障类型：警报alarm","fault_codes[3].27"]
["ADD板上料组装装备","C-PFA-CPPADD-A-BZJG-0001","故障日志\n fault_log","电气控制\nelectric_control","警报\nalarm","流水线模块\n line_module","AL[92]_回流线_XX警报","B40093","AL[92]_回流线_XX警报","故障类型：警报alarm","fault_codes[3].28"]
["ADD板上料组装装备","C-PFA-CPPADD-A-BZJG-0001","故障日志\n fault_log","电气控制\nelectric_control","警报\nalarm","流水线模块\n line_module","AL[93]_回流线_XX警报","B40094","AL[93]_回流线_XX警报","故障类型：警报alarm","fault_codes[3].29"]
["ADD板上料组装装备","C-PFA-CPPADD-A-BZJG-0001","故障日志\n fault_log","电气控制\nelectric_control","警报\nalarm","流水线模块\n line_module","AL[94]_回流线_XX警报","B40095","AL[94]_回流线_XX警报","故障类型：警报alarm","fault_codes[3].30"]
["ADD板上料组装装备","C-PFA-CPPADD-A-BZJG-0001","故障日志\n fault_log","电气控制\nelectric_control","警报\nalarm","流水线模块\n line_module","AL[95]_回流线_XX警报","B40096","AL[95]_回流线_XX警报","故障类型：警报alarm","fault_codes[3].31"]
["ADD板上料组装装备","C-PFA-CPPADD-A-BZJG-0001","故障日志\n fault_log","电气控制\nelectric_control","警报\nalarm","供料模块\n feed_module","AL[96]_料盘Z轴_初始化超时警报","B40097","AL[96]_料盘Z轴_初始化超时警报","故障类型：警报alarm","fault_codes[4].0"]
["ADD板上料组装装备","C-PFA-CPPADD-A-BZJG-0001","故障日志\n fault_log","电气控制\nelectric_control","警报\nalarm","供料模块\n feed_module","AL[97]_料盘Z轴_运行超时警报","B40098","AL[97]_料盘Z轴_运行超时警报","故障类型：警报alarm","fault_codes[4].1"]
["ADD板上料组装装备","C-PFA-CPPADD-A-BZJG-0001","故障日志\n fault_log","电气控制\nelectric_control","警报\nalarm","供料模块\n feed_module","AL[98]_料盘Z轴_轴错误警报","B40099","AL[98]_料盘Z轴_轴错误警报","故障类型：警报alarm","fault_codes[4].2"]
["ADD板上料组装装备","C-PFA-CPPADD-A-BZJG-0001","故障日志\n fault_log","电气控制\nelectric_control","警报\nalarm","供料模块\n feed_module","AL[99]_料盘Z轴_料盘归正气缸伸出警报","B40100","AL[99]_料盘Z轴_料盘归正气缸伸出警报","故障类型：警报alarm","fault_codes[4].3"]
["ADD板上料组装装备","C-PFA-CPPADD-A-BZJG-0001","故障日志\n fault_log","电气控制\nelectric_control","警报\nalarm","供料模块\n feed_module","AL[100]_料盘Z轴_料盘归正气缸缩回警报","B40101","AL[100]_料盘Z轴_料盘归正气缸缩回警报","故障类型：警报alarm","fault_codes[4].4"]
["ADD板上料组装装备","C-PFA-CPPADD-A-BZJG-0001","故障日志\n fault_log","电气控制\nelectric_control","警报\nalarm","供料模块\n feed_module","AL[101]_料盘Z轴_顶升上警报","B40102","AL[101]_料盘Z轴_顶升上警报","故障类型：警报alarm","fault_codes[4].5"]
["ADD板上料组装装备","C-PFA-CPPADD-A-BZJG-0001","故障日志\n fault_log","电气控制\nelectric_control","警报\nalarm","供料模块\n feed_module","AL[102]_料盘Z轴_顶升下警报","B40103","AL[102]_料盘Z轴_顶升下警报","故障类型：警报alarm","fault_codes[4].6"]
["ADD板上料组装装备","C-PFA-CPPADD-A-BZJG-0001","故障日志\n fault_log","电气控制\nelectric_control","警报\nalarm","供料模块\n feed_module","AL[103]_料盘Z轴_XX警报","B40104","AL[103]_料盘Z轴_XX警报","故障类型：警报alarm","fault_codes[4].7"]
["ADD板上料组装装备","C-PFA-CPPADD-A-BZJG-0001","故障日志\n fault_log","电气控制\nelectric_control","警报\nalarm","供料模块\n feed_module","AL[104]_料盘Z轴_XX警报","B40105","AL[104]_料盘Z轴_XX警报","故障类型：警报alarm","fault_codes[4].8"]
["ADD板上料组装装备","C-PFA-CPPADD-A-BZJG-0001","故障日志\n fault_log","电气控制\nelectric_control","警报\nalarm","供料模块\n feed_module","AL[105]_料盘Z轴_XX警报","B40106","AL[105]_料盘Z轴_XX警报","故障类型：警报alarm","fault_codes[4].9"]
["ADD板上料组装装备","C-PFA-CPPADD-A-BZJG-0001","故障日志\n fault_log","电气控制\nelectric_control","警报\nalarm","供料模块\n feed_module","AL[106]_料盘Z轴_XX警报","B40107","AL[106]_料盘Z轴_XX警报","故障类型：警报alarm","fault_codes[4].10"]
["ADD板上料组装装备","C-PFA-CPPADD-A-BZJG-0001","故障日志\n fault_log","电气控制\nelectric_control","警报\nalarm","供料模块\n feed_module","AL[107]_料盘Z轴_XX警报","B40108","AL[107]_料盘Z轴_XX警报","故障类型：警报alarm","fault_codes[4].11"]
["ADD板上料组装装备","C-PFA-CPPADD-A-BZJG-0001","故障日志\n fault_log","电气控制\nelectric_control","警报\nalarm","供料模块\n feed_module","AL[108]_料盘Z轴_XX警报","B40109","AL[108]_料盘Z轴_XX警报","故障类型：警报alarm","fault_codes[4].12"]
["ADD板上料组装装备","C-PFA-CPPADD-A-BZJG-0001","故障日志\n fault_log","电气控制\nelectric_control","警报\nalarm","供料模块\n feed_module","AL[109]_料盘Z轴_XX警报","B40110","AL[109]_料盘Z轴_XX警报","故障类型：警报alarm","fault_codes[4].13"]
["ADD板上料组装装备","C-PFA-CPPADD-A-BZJG-0001","故障日志\n fault_log","电气控制\nelectric_control","警报\nalarm","供料模块\n feed_module","AL[110]_料盘Z轴_XX警报","B40111","AL[110]_料盘Z轴_XX警报","故障类型：警报alarm","fault_codes[4].14"]
["ADD板上料组装装备","C-PFA-CPPADD-A-BZJG-0001","故障日志\n fault_log","电气控制\nelectric_control","警报\nalarm","供料模块\n feed_module","AL[111]_料盘Z轴_XX警报","B40112","AL[111]_料盘Z轴_XX警报","故障类型：警报alarm","fault_codes[4].15"]
["ADD板上料组装装备","C-PFA-CPPADD-A-BZJG-0001","故障日志\n fault_log","电气控制\nelectric_control","警报\nalarm","供料模块\n feed_module","AL[112]_料盘Z轴_XX警报","B40113","AL[112]_料盘Z轴_XX警报","故障类型：警报alarm","fault_codes[4].16"]
["ADD板上料组装装备","C-PFA-CPPADD-A-BZJG-0001","故障日志\n fault_log","电气控制\nelectric_control","警报\nalarm","供料模块\n feed_module","AL[113]_料盘Z轴_XX警报","B40114","AL[113]_料盘Z轴_XX警报","故障类型：警报alarm","fault_codes[4].17"]
["ADD板上料组装装备","C-PFA-CPPADD-A-BZJG-0001","故障日志\n fault_log","电气控制\nelectric_control","警报\nalarm","供料模块\n feed_module","AL[114]_料盘Z轴_XX警报","B40115","AL[114]_料盘Z轴_XX警报","故障类型：警报alarm","fault_codes[4].18"]
["ADD板上料组装装备","C-PFA-CPPADD-A-BZJG-0001","故障日志\n fault_log","电气控制\nelectric_control","警报\nalarm","供料模块\n feed_module","AL[115]_料盘Z轴_XX警报","B40116","AL[115]_料盘Z轴_XX警报","故障类型：警报alarm","fault_codes[4].19"]
["ADD板上料组装装备","C-PFA-CPPADD-A-BZJG-0001","故障日志\n fault_log","电气控制\nelectric_control","警报\nalarm","供料模块\n feed_module","AL[116]_料盘Z轴_XX警报","B40117","AL[116]_料盘Z轴_XX警报","故障类型：警报alarm","fault_codes[4].20"]
["ADD板上料组装装备","C-PFA-CPPADD-A-BZJG-0001","故障日志\n fault_log","电气控制\nelectric_control","警报\nalarm","供料模块\n feed_module","AL[117]_料盘Z轴_XX警报","B40118","AL[117]_料盘Z轴_XX警报","故障类型：警报alarm","fault_codes[4].21"]
["ADD板上料组装装备","C-PFA-CPPADD-A-BZJG-0001","故障日志\n fault_log","电气控制\nelectric_control","警报\nalarm","供料模块\n feed_module","AL[118]_料盘Z轴_XX警报","B40119","AL[118]_料盘Z轴_XX警报","故障类型：警报alarm","fault_codes[4].22"]
["ADD板上料组装装备","C-PFA-CPPADD-A-BZJG-0001","故障日志\n fault_log","电气控制\nelectric_control","警报\nalarm","供料模块\n feed_module","AL[119]_料盘Z轴_XX警报","B40120","AL[119]_料盘Z轴_XX警报","故障类型：警报alarm","fault_codes[4].23"]
["ADD板上料组装装备","C-PFA-CPPADD-A-BZJG-0001","故障日志\n fault_log","电气控制\nelectric_control","警报\nalarm","供料模块\n feed_module","AL[120]_料盘Z轴_XX警报","B40121","AL[120]_料盘Z轴_XX警报","故障类型：警报alarm","fault_codes[4].24"]
["ADD板上料组装装备","C-PFA-CPPADD-A-BZJG-0001","故障日志\n fault_log","电气控制\nelectric_control","警报\nalarm","供料模块\n feed_module","AL[121]_料盘Z轴_XX警报","B40122","AL[121]_料盘Z轴_XX警报","故障类型：警报alarm","fault_codes[4].25"]
["ADD板上料组装装备","C-PFA-CPPADD-A-BZJG-0001","故障日志\n fault_log","电气控制\nelectric_control","警报\nalarm","供料模块\n feed_module","AL[122]_料盘Z轴_XX警报","B40123","AL[122]_料盘Z轴_XX警报","故障类型：警报alarm","fault_codes[4].26"]
["ADD板上料组装装备","C-PFA-CPPADD-A-BZJG-0001","故障日志\n fault_log","电气控制\nelectric_control","警报\nalarm","供料模块\n feed_module","AL[123]_料盘Z轴_XX警报","B40124","AL[123]_料盘Z轴_XX警报","故障类型：警报alarm","fault_codes[4].27"]
["ADD板上料组装装备","C-PFA-CPPADD-A-BZJG-0001","故障日志\n fault_log","电气控制\nelectric_control","警报\nalarm","供料模块\n feed_module","AL[124]_料盘Z轴_XX警报","B40125","AL[124]_料盘Z轴_XX警报","故障类型：警报alarm","fault_codes[4].28"]
["ADD板上料组装装备","C-PFA-CPPADD-A-BZJG-0001","故障日志\n fault_log","电气控制\nelectric_control","警报\nalarm","供料模块\n feed_module","AL[125]_料盘Z轴_XX警报","B40126","AL[125]_料盘Z轴_XX警报","故障类型：警报alarm","fault_codes[4].29"]
["ADD板上料组装装备","C-PFA-CPPADD-A-BZJG-0001","故障日志\n fault_log","电气控制\nelectric_control","警报\nalarm","供料模块\n feed_module","AL[126]_料盘Z轴_XX警报","B40127","AL[126]_料盘Z轴_XX警报","故障类型：警报alarm","fault_codes[4].30"]
["ADD板上料组装装备","C-PFA-CPPADD-A-BZJG-0001","故障日志\n fault_log","电气控制\nelectric_control","警报\nalarm","供料模块\n feed_module","AL[127]_料盘Z轴_XX警报","B40128","AL[127]_料盘Z轴_XX警报","故障类型：警报alarm","fault_codes[4].31"]
["ADD板上料组装装备","C-PFA-CPPADD-A-BZJG-0001","故障日志\n fault_log","电气控制\nelectric_control","警报\nalarm","供料模块\n feed_module","AL[128]_料盘输送线_初始化超时警报","B40129","AL[128]_料盘输送线_初始化超时警报","故障类型：警报alarm","fault_codes[5].0"]
["ADD板上料组装装备","C-PFA-CPPADD-A-BZJG-0001","故障日志\n fault_log","电气控制\nelectric_control","警报\nalarm","供料模块\n feed_module","AL[129]_料盘输送线_运行超时警报","B40130","AL[129]_料盘输送线_运行超时警报","故障类型：警报alarm","fault_codes[5].1"]
["ADD板上料组装装备","C-PFA-CPPADD-A-BZJG-0001","故障日志\n fault_log","电气控制\nelectric_control","警报\nalarm","供料模块\n feed_module","AL[130]_料盘输送线_XX警报","B40131","AL[130]_料盘输送线_XX警报","故障类型：警报alarm","fault_codes[5].2"]
["ADD板上料组装装备","C-PFA-CPPADD-A-BZJG-0001","故障日志\n fault_log","电气控制\nelectric_control","警报\nalarm","供料模块\n feed_module","AL[131]_料盘输送线_XX警报","B40132","AL[131]_料盘输送线_XX警报","故障类型：警报alarm","fault_codes[5].3"]
["ADD板上料组装装备","C-PFA-CPPADD-A-BZJG-0001","故障日志\n fault_log","电气控制\nelectric_control","警报\nalarm","供料模块\n feed_module","AL[132]_料盘输送线_XX警报","B40133","AL[132]_料盘输送线_XX警报","故障类型：警报alarm","fault_codes[5].4"]
["ADD板上料组装装备","C-PFA-CPPADD-A-BZJG-0001","故障日志\n fault_log","电气控制\nelectric_control","警报\nalarm","供料模块\n feed_module","AL[133]_料盘输送线_XX警报","B40134","AL[133]_料盘输送线_XX警报","故障类型：警报alarm","fault_codes[5].5"]
["ADD板上料组装装备","C-PFA-CPPADD-A-BZJG-0001","故障日志\n fault_log","电气控制\nelectric_control","警报\nalarm","供料模块\n feed_module","AL[134]_料盘输送线_XX警报","B40135","AL[134]_料盘输送线_XX警报","故障类型：警报alarm","fault_codes[5].6"]
["ADD板上料组装装备","C-PFA-CPPADD-A-BZJG-0001","故障日志\n fault_log","电气控制\nelectric_control","警报\nalarm","供料模块\n feed_module","AL[135]_料盘输送线_XX警报","B40136","AL[135]_料盘输送线_XX警报","故障类型：警报alarm","fault_codes[5].7"]
["ADD板上料组装装备","C-PFA-CPPADD-A-BZJG-0001","故障日志\n fault_log","电气控制\nelectric_control","警报\nalarm","供料模块\n feed_module","AL[136]_料盘输送线_XX警报","B40137","AL[136]_料盘输送线_XX警报","故障类型：警报alarm","fault_codes[5].8"]
["ADD板上料组装装备","C-PFA-CPPADD-A-BZJG-0001","故障日志\n fault_log","电气控制\nelectric_control","警报\nalarm","供料模块\n feed_module","AL[137]_料盘输送线_XX警报","B40138","AL[137]_料盘输送线_XX警报","故障类型：警报alarm","fault_codes[5].9"]
["ADD板上料组装装备","C-PFA-CPPADD-A-BZJG-0001","故障日志\n fault_log","电气控制\nelectric_control","警报\nalarm","供料模块\n feed_module","AL[138]_料盘输送线_XX警报","B40139","AL[138]_料盘输送线_XX警报","故障类型：警报alarm","fault_codes[5].10"]
["ADD板上料组装装备","C-PFA-CPPADD-A-BZJG-0001","故障日志\n fault_log","电气控制\nelectric_control","警报\nalarm","供料模块\n feed_module","AL[139]_料盘输送线_XX警报","B40140","AL[139]_料盘输送线_XX警报","故障类型：警报alarm","fault_codes[5].11"]
["ADD板上料组装装备","C-PFA-CPPADD-A-BZJG-0001","故障日志\n fault_log","电气控制\nelectric_control","警报\nalarm","供料模块\n feed_module","AL[140]_料盘输送线_XX警报","B40141","AL[140]_料盘输送线_XX警报","故障类型：警报alarm","fault_codes[5].12"]
["ADD板上料组装装备","C-PFA-CPPADD-A-BZJG-0001","故障日志\n fault_log","电气控制\nelectric_control","警报\nalarm","供料模块\n feed_module","AL[141]_料盘输送线_XX警报","B40142","AL[141]_料盘输送线_XX警报","故障类型：警报alarm","fault_codes[5].13"]
["ADD板上料组装装备","C-PFA-CPPADD-A-BZJG-0001","故障日志\n fault_log","电气控制\nelectric_control","警报\nalarm","供料模块\n feed_module","AL[142]_料盘输送线_XX警报","B40143","AL[142]_料盘输送线_XX警报","故障类型：警报alarm","fault_codes[5].14"]
["ADD板上料组装装备","C-PFA-CPPADD-A-BZJG-0001","故障日志\n fault_log","电气控制\nelectric_control","警报\nalarm","供料模块\n feed_module","AL[143]_料盘输送线_XX警报","B40144","AL[143]_料盘输送线_XX警报","故障类型：警报alarm","fault_codes[5].15"]
["ADD板上料组装装备","C-PFA-CPPADD-A-BZJG-0001","故障日志\n fault_log","电气控制\nelectric_control","警报\nalarm","供料模块\n feed_module","AL[144]_料盘输送线_XX警报","B40145","AL[144]_料盘输送线_XX警报","故障类型：警报alarm","fault_codes[5].16"]
["ADD板上料组装装备","C-PFA-CPPADD-A-BZJG-0001","故障日志\n fault_log","电气控制\nelectric_control","警报\nalarm","供料模块\n feed_module","AL[145]_料盘输送线_XX警报","B40146","AL[145]_料盘输送线_XX警报","故障类型：警报alarm","fault_codes[5].17"]
["ADD板上料组装装备","C-PFA-CPPADD-A-BZJG-0001","故障日志\n fault_log","电气控制\nelectric_control","警报\nalarm","供料模块\n feed_module","AL[146]_料盘输送线_XX警报","B40147","AL[146]_料盘输送线_XX警报","故障类型：警报alarm","fault_codes[5].18"]
["ADD板上料组装装备","C-PFA-CPPADD-A-BZJG-0001","故障日志\n fault_log","电气控制\nelectric_control","警报\nalarm","供料模块\n feed_module","AL[147]_料盘输送线_XX警报","B40148","AL[147]_料盘输送线_XX警报","故障类型：警报alarm","fault_codes[5].19"]
["ADD板上料组装装备","C-PFA-CPPADD-A-BZJG-0001","故障日志\n fault_log","电气控制\nelectric_control","警报\nalarm","供料模块\n feed_module","AL[148]_料盘输送线_XX警报","B40149","AL[148]_料盘输送线_XX警报","故障类型：警报alarm","fault_codes[5].20"]
["ADD板上料组装装备","C-PFA-CPPADD-A-BZJG-0001","故障日志\n fault_log","电气控制\nelectric_control","警报\nalarm","供料模块\n feed_module","AL[149]_料盘输送线_XX警报","B40150","AL[149]_料盘输送线_XX警报","故障类型：警报alarm","fault_codes[5].21"]
["ADD板上料组装装备","C-PFA-CPPADD-A-BZJG-0001","故障日志\n fault_log","电气控制\nelectric_control","警报\nalarm","供料模块\n feed_module","AL[150]_料盘输送线_XX警报","B40151","AL[150]_料盘输送线_XX警报","故障类型：警报alarm","fault_codes[5].22"]
["ADD板上料组装装备","C-PFA-CPPADD-A-BZJG-0001","故障日志\n fault_log","电气控制\nelectric_control","警报\nalarm","供料模块\n feed_module","AL[151]_料盘输送线_XX警报","B40152","AL[151]_料盘输送线_XX警报","故障类型：警报alarm","fault_codes[5].23"]
["ADD板上料组装装备","C-PFA-CPPADD-A-BZJG-0001","故障日志\n fault_log","电气控制\nelectric_control","警报\nalarm","供料模块\n feed_module","AL[152]_料盘输送线_XX警报","B40153","AL[152]_料盘输送线_XX警报","故障类型：警报alarm","fault_codes[5].24"]
["ADD板上料组装装备","C-PFA-CPPADD-A-BZJG-0001","故障日志\n fault_log","电气控制\nelectric_control","警报\nalarm","供料模块\n feed_module","AL[153]_料盘输送线_XX警报","B40154","AL[153]_料盘输送线_XX警报","故障类型：警报alarm","fault_codes[5].25"]
["ADD板上料组装装备","C-PFA-CPPADD-A-BZJG-0001","故障日志\n fault_log","电气控制\nelectric_control","警报\nalarm","供料模块\n feed_module","AL[154]_料盘输送线_XX警报","B40155","AL[154]_料盘输送线_XX警报","故障类型：警报alarm","fault_codes[5].26"]
["ADD板上料组装装备","C-PFA-CPPADD-A-BZJG-0001","故障日志\n fault_log","电气控制\nelectric_control","警报\nalarm","供料模块\n feed_module","AL[155]_料盘输送线_XX警报","B40156","AL[155]_料盘输送线_XX警报","故障类型：警报alarm","fault_codes[5].27"]
["ADD板上料组装装备","C-PFA-CPPADD-A-BZJG-0001","故障日志\n fault_log","电气控制\nelectric_control","警报\nalarm","供料模块\n feed_module","AL[156]_料盘输送线_XX警报","B40157","AL[156]_料盘输送线_XX警报","故障类型：警报alarm","fault_codes[5].28"]
["ADD板上料组装装备","C-PFA-CPPADD-A-BZJG-0001","故障日志\n fault_log","电气控制\nelectric_control","警报\nalarm","供料模块\n feed_module","AL[157]_料盘输送线_XX警报","B40158","AL[157]_料盘输送线_XX警报","故障类型：警报alarm","fault_codes[5].29"]
["ADD板上料组装装备","C-PFA-CPPADD-A-BZJG-0001","故障日志\n fault_log","电气控制\nelectric_control","警报\nalarm","供料模块\n feed_module","AL[158]_料盘输送线_XX警报","B40159","AL[158]_料盘输送线_XX警报","故障类型：警报alarm","fault_codes[5].30"]
["ADD板上料组装装备","C-PFA-CPPADD-A-BZJG-0001","故障日志\n fault_log","电气控制\nelectric_control","警报\nalarm","供料模块\n feed_module","AL[159]_料盘输送线_XX警报","B40160","AL[159]_料盘输送线_XX警报","故障类型：警报alarm","fault_codes[5].31"]
["ADD板上料组装装备","C-PFA-CPPADD-A-BZJG-0001","故障日志\n fault_log","电气控制\nelectric_control","警报\nalarm","作业模块\n work_module","AL[160]_横移机构_初始化超时警报","B40161","AL[160]_横移机构_初始化超时警报","故障类型：警报alarm","fault_codes[6].0"]
["ADD板上料组装装备","C-PFA-CPPADD-A-BZJG-0001","故障日志\n fault_log","电气控制\nelectric_control","警报\nalarm","作业模块\n work_module","AL[161]_横移机构_运行超时警报","B40162","AL[161]_横移机构_运行超时警报","故障类型：警报alarm","fault_codes[6].1"]
["ADD板上料组装装备","C-PFA-CPPADD-A-BZJG-0001","故障日志\n fault_log","电气控制\nelectric_control","警报\nalarm","作业模块\n work_module","AL[162]_横移机构_气缸上警报","B40163","AL[162]_横移机构_气缸上警报","故障类型：警报alarm","fault_codes[6].2"]
["ADD板上料组装装备","C-PFA-CPPADD-A-BZJG-0001","故障日志\n fault_log","电气控制\nelectric_control","警报\nalarm","作业模块\n work_module","AL[163]_横移机构_气缸下警报","B40164","AL[163]_横移机构_气缸下警报","故障类型：警报alarm","fault_codes[6].3"]
["ADD板上料组装装备","C-PFA-CPPADD-A-BZJG-0001","故障日志\n fault_log","电气控制\nelectric_control","警报\nalarm","作业模块\n work_module","AL[164]_横移机构_轴错误警报","B40165","AL[164]_横移机构_轴错误警报","故障类型：警报alarm","fault_codes[6].4"]
["ADD板上料组装装备","C-PFA-CPPADD-A-BZJG-0001","故障日志\n fault_log","电气控制\nelectric_control","警报\nalarm","作业模块\n work_module","AL[165]_横移机构_真空1警报","B40166","AL[165]_横移机构_真空1警报","故障类型：警报alarm","fault_codes[6].5"]
["ADD板上料组装装备","C-PFA-CPPADD-A-BZJG-0001","故障日志\n fault_log","电气控制\nelectric_control","警报\nalarm","作业模块\n work_module","AL[166]_横移机构_真空2警报","B40167","AL[166]_横移机构_真空2警报","故障类型：警报alarm","fault_codes[6].6"]
["ADD板上料组装装备","C-PFA-CPPADD-A-BZJG-0001","故障日志\n fault_log","电气控制\nelectric_control","警报\nalarm","作业模块\n work_module","AL[167]_横移机构_XX警报","B40168","AL[167]_横移机构_XX警报","故障类型：警报alarm","fault_codes[6].7"]
["ADD板上料组装装备","C-PFA-CPPADD-A-BZJG-0001","故障日志\n fault_log","电气控制\nelectric_control","警报\nalarm","作业模块\n work_module","AL[168]_横移机构_XX警报","B40169","AL[168]_横移机构_XX警报","故障类型：警报alarm","fault_codes[6].8"]
["ADD板上料组装装备","C-PFA-CPPADD-A-BZJG-0001","故障日志\n fault_log","电气控制\nelectric_control","警报\nalarm","作业模块\n work_module","AL[169]_横移机构_XX警报","B40170","AL[169]_横移机构_XX警报","故障类型：警报alarm","fault_codes[6].9"]
["ADD板上料组装装备","C-PFA-CPPADD-A-BZJG-0001","故障日志\n fault_log","电气控制\nelectric_control","警报\nalarm","作业模块\n work_module","AL[170]_横移机构_XX警报","B40171","AL[170]_横移机构_XX警报","故障类型：警报alarm","fault_codes[6].10"]
["ADD板上料组装装备","C-PFA-CPPADD-A-BZJG-0001","故障日志\n fault_log","电气控制\nelectric_control","警报\nalarm","作业模块\n work_module","AL[171]_横移机构_XX警报","B40172","AL[171]_横移机构_XX警报","故障类型：警报alarm","fault_codes[6].11"]
["ADD板上料组装装备","C-PFA-CPPADD-A-BZJG-0001","故障日志\n fault_log","电气控制\nelectric_control","警报\nalarm","作业模块\n work_module","AL[172]_横移机构_XX警报","B40173","AL[172]_横移机构_XX警报","故障类型：警报alarm","fault_codes[6].12"]
["ADD板上料组装装备","C-PFA-CPPADD-A-BZJG-0001","故障日志\n fault_log","电气控制\nelectric_control","警报\nalarm","作业模块\n work_module","AL[173]_横移机构_XX警报","B40174","AL[173]_横移机构_XX警报","故障类型：警报alarm","fault_codes[6].13"]
["ADD板上料组装装备","C-PFA-CPPADD-A-BZJG-0001","故障日志\n fault_log","电气控制\nelectric_control","警报\nalarm","作业模块\n work_module","AL[174]_横移机构_XX警报","B40175","AL[174]_横移机构_XX警报","故障类型：警报alarm","fault_codes[6].14"]
["ADD板上料组装装备","C-PFA-CPPADD-A-BZJG-0001","故障日志\n fault_log","电气控制\nelectric_control","警报\nalarm","作业模块\n work_module","AL[175]_横移机构_XX警报","B40176","AL[175]_横移机构_XX警报","故障类型：警报alarm","fault_codes[6].15"]
["ADD板上料组装装备","C-PFA-CPPADD-A-BZJG-0001","故障日志\n fault_log","电气控制\nelectric_control","警报\nalarm","作业模块\n work_module","AL[176]_横移机构_XX警报","B40177","AL[176]_横移机构_XX警报","故障类型：警报alarm","fault_codes[6].16"]
["ADD板上料组装装备","C-PFA-CPPADD-A-BZJG-0001","故障日志\n fault_log","电气控制\nelectric_control","警报\nalarm","作业模块\n work_module","AL[177]_横移机构_XX警报","B40178","AL[177]_横移机构_XX警报","故障类型：警报alarm","fault_codes[6].17"]
["ADD板上料组装装备","C-PFA-CPPADD-A-BZJG-0001","故障日志\n fault_log","电气控制\nelectric_control","警报\nalarm","作业模块\n work_module","AL[178]_横移机构_XX警报","B40179","AL[178]_横移机构_XX警报","故障类型：警报alarm","fault_codes[6].18"]
["ADD板上料组装装备","C-PFA-CPPADD-A-BZJG-0001","故障日志\n fault_log","电气控制\nelectric_control","警报\nalarm","作业模块\n work_module","AL[179]_横移机构_XX警报","B40180","AL[179]_横移机构_XX警报","故障类型：警报alarm","fault_codes[6].19"]
["ADD板上料组装装备","C-PFA-CPPADD-A-BZJG-0001","故障日志\n fault_log","电气控制\nelectric_control","警报\nalarm","作业模块\n work_module","AL[180]_横移机构_XX警报","B40181","AL[180]_横移机构_XX警报","故障类型：警报alarm","fault_codes[6].20"]
["ADD板上料组装装备","C-PFA-CPPADD-A-BZJG-0001","故障日志\n fault_log","电气控制\nelectric_control","警报\nalarm","作业模块\n work_module","AL[181]_横移机构_XX警报","B40182","AL[181]_横移机构_XX警报","故障类型：警报alarm","fault_codes[6].21"]
["ADD板上料组装装备","C-PFA-CPPADD-A-BZJG-0001","故障日志\n fault_log","电气控制\nelectric_control","警报\nalarm","作业模块\n work_module","AL[182]_横移机构_XX警报","B40183","AL[182]_横移机构_XX警报","故障类型：警报alarm","fault_codes[6].22"]
["ADD板上料组装装备","C-PFA-CPPADD-A-BZJG-0001","故障日志\n fault_log","电气控制\nelectric_control","警报\nalarm","作业模块\n work_module","AL[183]_横移机构_XX警报","B40184","AL[183]_横移机构_XX警报","故障类型：警报alarm","fault_codes[6].23"]
["ADD板上料组装装备","C-PFA-CPPADD-A-BZJG-0001","故障日志\n fault_log","电气控制\nelectric_control","警报\nalarm","作业模块\n work_module","AL[184]_横移机构_XX警报","B40185","AL[184]_横移机构_XX警报","故障类型：警报alarm","fault_codes[6].24"]
["ADD板上料组装装备","C-PFA-CPPADD-A-BZJG-0001","故障日志\n fault_log","电气控制\nelectric_control","警报\nalarm","作业模块\n work_module","AL[185]_横移机构_XX警报","B40186","AL[185]_横移机构_XX警报","故障类型：警报alarm","fault_codes[6].25"]
["ADD板上料组装装备","C-PFA-CPPADD-A-BZJG-0001","故障日志\n fault_log","电气控制\nelectric_control","警报\nalarm","作业模块\n work_module","AL[186]_横移机构_XX警报","B40187","AL[186]_横移机构_XX警报","故障类型：警报alarm","fault_codes[6].26"]
["ADD板上料组装装备","C-PFA-CPPADD-A-BZJG-0001","故障日志\n fault_log","电气控制\nelectric_control","警报\nalarm","作业模块\n work_module","AL[187]_横移机构_XX警报","B40188","AL[187]_横移机构_XX警报","故障类型：警报alarm","fault_codes[6].27"]
["ADD板上料组装装备","C-PFA-CPPADD-A-BZJG-0001","故障日志\n fault_log","电气控制\nelectric_control","警报\nalarm","作业模块\n work_module","AL[188]_横移机构_XX警报","B40189","AL[188]_横移机构_XX警报","故障类型：警报alarm","fault_codes[6].28"]
["ADD板上料组装装备","C-PFA-CPPADD-A-BZJG-0001","故障日志\n fault_log","电气控制\nelectric_control","警报\nalarm","作业模块\n work_module","AL[189]_横移机构_XX警报","B40190","AL[189]_横移机构_XX警报","故障类型：警报alarm","fault_codes[6].29"]
["ADD板上料组装装备","C-PFA-CPPADD-A-BZJG-0001","故障日志\n fault_log","电气控制\nelectric_control","警报\nalarm","作业模块\n work_module","AL[190]_横移机构_XX警报","B40191","AL[190]_横移机构_XX警报","故障类型：警报alarm","fault_codes[6].30"]
["ADD板上料组装装备","C-PFA-CPPADD-A-BZJG-0001","故障日志\n fault_log","电气控制\nelectric_control","警报\nalarm","作业模块\n work_module","AL[191]_横移机构_XX警报","B40192","AL[191]_横移机构_XX警报","故障类型：警报alarm","fault_codes[6].31"]
["ADD板上料组装装备","C-PFA-CPPADD-A-BZJG-0001","故障日志\n fault_log","电气控制\nelectric_control","警报\nalarm","供料模块\n feed_module","AL[200]_空盘Z轴_初始化超时警报","B40193","AL[200]_空盘Z轴_初始化超时警报","故障类型：警报alarm","fault_codes[7].0"]
["ADD板上料组装装备","C-PFA-CPPADD-A-BZJG-0001","故障日志\n fault_log","电气控制\nelectric_control","警报\nalarm","供料模块\n feed_module","AL[201]_空盘Z轴_运行超时警报","B40194","AL[201]_空盘Z轴_运行超时警报","故障类型：警报alarm","fault_codes[7].1"]
["ADD板上料组装装备","C-PFA-CPPADD-A-BZJG-0001","故障日志\n fault_log","电气控制\nelectric_control","警报\nalarm","供料模块\n feed_module","AL[202]_空盘Z轴_归正气缸伸出警报","B40195","AL[202]_空盘Z轴_归正气缸伸出警报","故障类型：警报alarm","fault_codes[7].2"]
["ADD板上料组装装备","C-PFA-CPPADD-A-BZJG-0001","故障日志\n fault_log","电气控制\nelectric_control","警报\nalarm","供料模块\n feed_module","AL[203]_空盘Z轴_归正气缸缩回警报","B40196","AL[203]_空盘Z轴_归正气缸缩回警报","故障类型：警报alarm","fault_codes[7].3"]
["ADD板上料组装装备","C-PFA-CPPADD-A-BZJG-0001","故障日志\n fault_log","电气控制\nelectric_control","警报\nalarm","供料模块\n feed_module","AL[204]_空盘Z轴_轴错误警报","B40197","AL[204]_空盘Z轴_轴错误警报","故障类型：警报alarm","fault_codes[7].4"]
["ADD板上料组装装备","C-PFA-CPPADD-A-BZJG-0001","故障日志\n fault_log","电气控制\nelectric_control","警报\nalarm","供料模块\n feed_module","AL[205]_空盘Z轴_顶升上警报","B40198","AL[205]_空盘Z轴_顶升上警报","故障类型：警报alarm","fault_codes[7].5"]
["ADD板上料组装装备","C-PFA-CPPADD-A-BZJG-0001","故障日志\n fault_log","电气控制\nelectric_control","警报\nalarm","供料模块\n feed_module","AL[206]_空盘Z轴_顶升下警报","B40199","AL[206]_空盘Z轴_顶升下警报","故障类型：警报alarm","fault_codes[7].6"]
["ADD板上料组装装备","C-PFA-CPPADD-A-BZJG-0001","故障日志\n fault_log","电气控制\nelectric_control","警报\nalarm","供料模块\n feed_module","AL[207]_空盘Z轴_XX警报","B40200","AL[207]_空盘Z轴_XX警报","故障类型：警报alarm","fault_codes[7].7"]
["ADD板上料组装装备","C-PFA-CPPADD-A-BZJG-0001","故障日志\n fault_log","电气控制\nelectric_control","警报\nalarm","供料模块\n feed_module","AL[208]_空盘Z轴_XX警报","B40201","AL[208]_空盘Z轴_XX警报","故障类型：警报alarm","fault_codes[7].8"]
["ADD板上料组装装备","C-PFA-CPPADD-A-BZJG-0001","故障日志\n fault_log","电气控制\nelectric_control","警报\nalarm","供料模块\n feed_module","AL[209]_空盘Z轴_XX警报","B40202","AL[209]_空盘Z轴_XX警报","故障类型：警报alarm","fault_codes[7].9"]
["ADD板上料组装装备","C-PFA-CPPADD-A-BZJG-0001","故障日志\n fault_log","电气控制\nelectric_control","警报\nalarm","供料模块\n feed_module","AL[210]_空盘Z轴_XX警报","B40203","AL[210]_空盘Z轴_XX警报","故障类型：警报alarm","fault_codes[7].10"]
["ADD板上料组装装备","C-PFA-CPPADD-A-BZJG-0001","故障日志\n fault_log","电气控制\nelectric_control","警报\nalarm","供料模块\n feed_module","AL[211]_空盘Z轴_XX警报","B40204","AL[211]_空盘Z轴_XX警报","故障类型：警报alarm","fault_codes[7].11"]
["ADD板上料组装装备","C-PFA-CPPADD-A-BZJG-0001","故障日志\n fault_log","电气控制\nelectric_control","警报\nalarm","供料模块\n feed_module","AL[212]_空盘Z轴_XX警报","B40205","AL[212]_空盘Z轴_XX警报","故障类型：警报alarm","fault_codes[7].12"]
["ADD板上料组装装备","C-PFA-CPPADD-A-BZJG-0001","故障日志\n fault_log","电气控制\nelectric_control","警报\nalarm","供料模块\n feed_module","AL[213]_空盘Z轴_XX警报","B40206","AL[213]_空盘Z轴_XX警报","故障类型：警报alarm","fault_codes[7].13"]
["ADD板上料组装装备","C-PFA-CPPADD-A-BZJG-0001","故障日志\n fault_log","电气控制\nelectric_control","警报\nalarm","供料模块\n feed_module","AL[214]_空盘Z轴_XX警报","B40207","AL[214]_空盘Z轴_XX警报","故障类型：警报alarm","fault_codes[7].14"]
["ADD板上料组装装备","C-PFA-CPPADD-A-BZJG-0001","故障日志\n fault_log","电气控制\nelectric_control","警报\nalarm","供料模块\n feed_module","AL[215]_空盘Z轴_XX警报","B40208","AL[215]_空盘Z轴_XX警报","故障类型：警报alarm","fault_codes[7].15"]
["ADD板上料组装装备","C-PFA-CPPADD-A-BZJG-0001","故障日志\n fault_log","电气控制\nelectric_control","警报\nalarm","供料模块\n feed_module","AL[216]_空盘Z轴_XX警报","B40209","AL[216]_空盘Z轴_XX警报","故障类型：警报alarm","fault_codes[7].16"]
["ADD板上料组装装备","C-PFA-CPPADD-A-BZJG-0001","故障日志\n fault_log","电气控制\nelectric_control","警报\nalarm","供料模块\n feed_module","AL[217]_空盘Z轴_XX警报","B40210","AL[217]_空盘Z轴_XX警报","故障类型：警报alarm","fault_codes[7].17"]
["ADD板上料组装装备","C-PFA-CPPADD-A-BZJG-0001","故障日志\n fault_log","电气控制\nelectric_control","警报\nalarm","供料模块\n feed_module","AL[218]_空盘Z轴_XX警报","B40211","AL[218]_空盘Z轴_XX警报","故障类型：警报alarm","fault_codes[7].18"]
["ADD板上料组装装备","C-PFA-CPPADD-A-BZJG-0001","故障日志\n fault_log","电气控制\nelectric_control","警报\nalarm","供料模块\n feed_module","AL[219]_空盘Z轴_XX警报","B40212","AL[219]_空盘Z轴_XX警报","故障类型：警报alarm","fault_codes[7].19"]
["ADD板上料组装装备","C-PFA-CPPADD-A-BZJG-0001","故障日志\n fault_log","电气控制\nelectric_control","警报\nalarm","供料模块\n feed_module","AL[220]_空盘Z轴_XX警报","B40213","AL[220]_空盘Z轴_XX警报","故障类型：警报alarm","fault_codes[7].20"]
["ADD板上料组装装备","C-PFA-CPPADD-A-BZJG-0001","故障日志\n fault_log","电气控制\nelectric_control","警报\nalarm","供料模块\n feed_module","AL[221]_空盘Z轴_XX警报","B40214","AL[221]_空盘Z轴_XX警报","故障类型：警报alarm","fault_codes[7].21"]
["ADD板上料组装装备","C-PFA-CPPADD-A-BZJG-0001","故障日志\n fault_log","电气控制\nelectric_control","警报\nalarm","供料模块\n feed_module","AL[222]_空盘Z轴_XX警报","B40215","AL[222]_空盘Z轴_XX警报","故障类型：警报alarm","fault_codes[7].22"]
["ADD板上料组装装备","C-PFA-CPPADD-A-BZJG-0001","故障日志\n fault_log","电气控制\nelectric_control","警报\nalarm","供料模块\n feed_module","AL[223]_空盘Z轴_XX警报","B40216","AL[223]_空盘Z轴_XX警报","故障类型：警报alarm","fault_codes[7].23"]
["ADD板上料组装装备","C-PFA-CPPADD-A-BZJG-0001","故障日志\n fault_log","电气控制\nelectric_control","警报\nalarm","供料模块\n feed_module","AL[224]_空盘Z轴_XX警报","B40217","AL[224]_空盘Z轴_XX警报","故障类型：警报alarm","fault_codes[7].24"]
["ADD板上料组装装备","C-PFA-CPPADD-A-BZJG-0001","故障日志\n fault_log","电气控制\nelectric_control","警报\nalarm","供料模块\n feed_module","AL[225]_空盘Z轴_XX警报","B40218","AL[225]_空盘Z轴_XX警报","故障类型：警报alarm","fault_codes[7].25"]
["ADD板上料组装装备","C-PFA-CPPADD-A-BZJG-0001","故障日志\n fault_log","电气控制\nelectric_control","警报\nalarm","供料模块\n feed_module","AL[226]_空盘Z轴_XX警报","B40219","AL[226]_空盘Z轴_XX警报","故障类型：警报alarm","fault_codes[7].26"]
["ADD板上料组装装备","C-PFA-CPPADD-A-BZJG-0001","故障日志\n fault_log","电气控制\nelectric_control","警报\nalarm","供料模块\n feed_module","AL[227]_空盘Z轴_XX警报","B40220","AL[227]_空盘Z轴_XX警报","故障类型：警报alarm","fault_codes[7].27"]
["ADD板上料组装装备","C-PFA-CPPADD-A-BZJG-0001","故障日志\n fault_log","电气控制\nelectric_control","警报\nalarm","供料模块\n feed_module","AL[228]_空盘Z轴_XX警报","B40221","AL[228]_空盘Z轴_XX警报","故障类型：警报alarm","fault_codes[7].28"]
["ADD板上料组装装备","C-PFA-CPPADD-A-BZJG-0001","故障日志\n fault_log","电气控制\nelectric_control","警报\nalarm","供料模块\n feed_module","AL[229]_空盘Z轴_XX警报","B40222","AL[229]_空盘Z轴_XX警报","故障类型：警报alarm","fault_codes[7].29"]
["ADD板上料组装装备","C-PFA-CPPADD-A-BZJG-0001","故障日志\n fault_log","电气控制\nelectric_control","警报\nalarm","供料模块\n feed_module","AL[230]_空盘Z轴_XX警报","B40223","AL[230]_空盘Z轴_XX警报","故障类型：警报alarm","fault_codes[7].30"]
["ADD板上料组装装备","C-PFA-CPPADD-A-BZJG-0001","故障日志\n fault_log","电气控制\nelectric_control","警报\nalarm","供料模块\n feed_module","AL[231]_空盘Z轴_XX警报","B40224","AL[231]_空盘Z轴_XX警报","故障类型：警报alarm","fault_codes[7].31"]
["ADD板上料组装装备","C-PFA-CPPADD-A-BZJG-0001","故障日志\n fault_log","电气控制\nelectric_control","警报\nalarm","供料模块\n feed_module","AL[232]_空盘输送线_初始化超时警报","B40225","AL[232]_空盘输送线_初始化超时警报","故障类型：警报alarm","fault_codes[8].0"]
["ADD板上料组装装备","C-PFA-CPPADD-A-BZJG-0001","故障日志\n fault_log","电气控制\nelectric_control","警报\nalarm","供料模块\n feed_module","AL[233]_空盘输送线_运行超时警报","B40226","AL[233]_空盘输送线_运行超时警报","故障类型：警报alarm","fault_codes[8].1"]
["ADD板上料组装装备","C-PFA-CPPADD-A-BZJG-0001","故障日志\n fault_log","电气控制\nelectric_control","警报\nalarm","供料模块\n feed_module","AL[234]_空盘输送线_XX警报","B40227","AL[234]_空盘输送线_XX警报","故障类型：警报alarm","fault_codes[8].2"]
["ADD板上料组装装备","C-PFA-CPPADD-A-BZJG-0001","故障日志\n fault_log","电气控制\nelectric_control","警报\nalarm","供料模块\n feed_module","AL[235]_空盘输送线_XX警报","B40228","AL[235]_空盘输送线_XX警报","故障类型：警报alarm","fault_codes[8].3"]
["ADD板上料组装装备","C-PFA-CPPADD-A-BZJG-0001","故障日志\n fault_log","电气控制\nelectric_control","警报\nalarm","供料模块\n feed_module","AL[236]_空盘输送线_XX警报","B40229","AL[236]_空盘输送线_XX警报","故障类型：警报alarm","fault_codes[8].4"]
["ADD板上料组装装备","C-PFA-CPPADD-A-BZJG-0001","故障日志\n fault_log","电气控制\nelectric_control","警报\nalarm","供料模块\n feed_module","AL[237]_空盘输送线_XX警报","B40230","AL[237]_空盘输送线_XX警报","故障类型：警报alarm","fault_codes[8].5"]
["ADD板上料组装装备","C-PFA-CPPADD-A-BZJG-0001","故障日志\n fault_log","电气控制\nelectric_control","警报\nalarm","供料模块\n feed_module","AL[238]_空盘输送线_XX警报","B40231","AL[238]_空盘输送线_XX警报","故障类型：警报alarm","fault_codes[8].6"]
["ADD板上料组装装备","C-PFA-CPPADD-A-BZJG-0001","故障日志\n fault_log","电气控制\nelectric_control","警报\nalarm","供料模块\n feed_module","AL[239]_空盘输送线_XX警报","B40232","AL[239]_空盘输送线_XX警报","故障类型：警报alarm","fault_codes[8].7"]
["ADD板上料组装装备","C-PFA-CPPADD-A-BZJG-0001","故障日志\n fault_log","电气控制\nelectric_control","警报\nalarm","供料模块\n feed_module","AL[240]_空盘输送线_XX警报","B40233","AL[240]_空盘输送线_XX警报","故障类型：警报alarm","fault_codes[8].8"]
["ADD板上料组装装备","C-PFA-CPPADD-A-BZJG-0001","故障日志\n fault_log","电气控制\nelectric_control","警报\nalarm","供料模块\n feed_module","AL[241]_空盘输送线_XX警报","B40234","AL[241]_空盘输送线_XX警报","故障类型：警报alarm","fault_codes[8].9"]
["ADD板上料组装装备","C-PFA-CPPADD-A-BZJG-0001","故障日志\n fault_log","电气控制\nelectric_control","警报\nalarm","供料模块\n feed_module","AL[242]_空盘输送线_XX警报","B40235","AL[242]_空盘输送线_XX警报","故障类型：警报alarm","fault_codes[8].10"]
["ADD板上料组装装备","C-PFA-CPPADD-A-BZJG-0001","故障日志\n fault_log","电气控制\nelectric_control","警报\nalarm","供料模块\n feed_module","AL[243]_空盘输送线_XX警报","B40236","AL[243]_空盘输送线_XX警报","故障类型：警报alarm","fault_codes[8].11"]
["ADD板上料组装装备","C-PFA-CPPADD-A-BZJG-0001","故障日志\n fault_log","电气控制\nelectric_control","警报\nalarm","供料模块\n feed_module","AL[244]_空盘输送线_XX警报","B40237","AL[244]_空盘输送线_XX警报","故障类型：警报alarm","fault_codes[8].12"]
["ADD板上料组装装备","C-PFA-CPPADD-A-BZJG-0001","故障日志\n fault_log","电气控制\nelectric_control","警报\nalarm","供料模块\n feed_module","AL[245]_空盘输送线_XX警报","B40238","AL[245]_空盘输送线_XX警报","故障类型：警报alarm","fault_codes[8].13"]
["ADD板上料组装装备","C-PFA-CPPADD-A-BZJG-0001","故障日志\n fault_log","电气控制\nelectric_control","警报\nalarm","供料模块\n feed_module","AL[246]_空盘输送线_XX警报","B40239","AL[246]_空盘输送线_XX警报","故障类型：警报alarm","fault_codes[8].14"]
["ADD板上料组装装备","C-PFA-CPPADD-A-BZJG-0001","故障日志\n fault_log","电气控制\nelectric_control","警报\nalarm","供料模块\n feed_module","AL[247]_空盘输送线_XX警报","B40240","AL[247]_空盘输送线_XX警报","故障类型：警报alarm","fault_codes[8].15"]
["ADD板上料组装装备","C-PFA-CPPADD-A-BZJG-0001","故障日志\n fault_log","电气控制\nelectric_control","警报\nalarm","供料模块\n feed_module","AL[248]_空盘输送线_XX警报","B40241","AL[248]_空盘输送线_XX警报","故障类型：警报alarm","fault_codes[8].16"]
["ADD板上料组装装备","C-PFA-CPPADD-A-BZJG-0001","故障日志\n fault_log","电气控制\nelectric_control","警报\nalarm","供料模块\n feed_module","AL[249]_空盘输送线_XX警报","B40242","AL[249]_空盘输送线_XX警报","故障类型：警报alarm","fault_codes[8].17"]
["ADD板上料组装装备","C-PFA-CPPADD-A-BZJG-0001","故障日志\n fault_log","电气控制\nelectric_control","警报\nalarm","供料模块\n feed_module","AL[250]_空盘输送线_XX警报","B40243","AL[250]_空盘输送线_XX警报","故障类型：警报alarm","fault_codes[8].18"]
["ADD板上料组装装备","C-PFA-CPPADD-A-BZJG-0001","故障日志\n fault_log","电气控制\nelectric_control","警报\nalarm","供料模块\n feed_module","AL[251]_空盘输送线_XX警报","B40244","AL[251]_空盘输送线_XX警报","故障类型：警报alarm","fault_codes[8].19"]
["ADD板上料组装装备","C-PFA-CPPADD-A-BZJG-0001","故障日志\n fault_log","电气控制\nelectric_control","警报\nalarm","供料模块\n feed_module","AL[252]_空盘输送线_XX警报","B40245","AL[252]_空盘输送线_XX警报","故障类型：警报alarm","fault_codes[8].20"]
["ADD板上料组装装备","C-PFA-CPPADD-A-BZJG-0001","故障日志\n fault_log","电气控制\nelectric_control","警报\nalarm","供料模块\n feed_module","AL[253]_空盘输送线_XX警报","B40246","AL[253]_空盘输送线_XX警报","故障类型：警报alarm","fault_codes[8].21"]
["ADD板上料组装装备","C-PFA-CPPADD-A-BZJG-0001","故障日志\n fault_log","电气控制\nelectric_control","警报\nalarm","供料模块\n feed_module","AL[254]_空盘输送线_XX警报","B40247","AL[254]_空盘输送线_XX警报","故障类型：警报alarm","fault_codes[8].22"]
["ADD板上料组装装备","C-PFA-CPPADD-A-BZJG-0001","故障日志\n fault_log","电气控制\nelectric_control","警报\nalarm","供料模块\n feed_module","AL[255]_空盘输送线_XX警报","B40248","AL[255]_空盘输送线_XX警报","故障类型：警报alarm","fault_codes[8].23"]
["ADD板上料组装装备","C-PFA-CPPADD-A-BZJG-0001","故障日志\n fault_log","电气控制\nelectric_control","警报\nalarm","供料模块\n feed_module","AL[256]_空盘输送线_XX警报","B40249","AL[256]_空盘输送线_XX警报","故障类型：警报alarm","fault_codes[8].24"]
["ADD板上料组装装备","C-PFA-CPPADD-A-BZJG-0001","故障日志\n fault_log","电气控制\nelectric_control","警报\nalarm","供料模块\n feed_module","AL[257]_空盘输送线_XX警报","B40250","AL[257]_空盘输送线_XX警报","故障类型：警报alarm","fault_codes[8].25"]
["ADD板上料组装装备","C-PFA-CPPADD-A-BZJG-0001","故障日志\n fault_log","电气控制\nelectric_control","警报\nalarm","供料模块\n feed_module","AL[258]_空盘输送线_XX警报","B40251","AL[258]_空盘输送线_XX警报","故障类型：警报alarm","fault_codes[8].26"]
["ADD板上料组装装备","C-PFA-CPPADD-A-BZJG-0001","故障日志\n fault_log","电气控制\nelectric_control","警报\nalarm","供料模块\n feed_module","AL[259]_空盘输送线_XX警报","B40252","AL[259]_空盘输送线_XX警报","故障类型：警报alarm","fault_codes[8].27"]
["ADD板上料组装装备","C-PFA-CPPADD-A-BZJG-0001","故障日志\n fault_log","电气控制\nelectric_control","警报\nalarm","供料模块\n feed_module","AL[260]_空盘输送线_XX警报","B40253","AL[260]_空盘输送线_XX警报","故障类型：警报alarm","fault_codes[8].28"]
["ADD板上料组装装备","C-PFA-CPPADD-A-BZJG-0001","故障日志\n fault_log","电气控制\nelectric_control","警报\nalarm","供料模块\n feed_module","AL[261]_空盘输送线_XX警报","B40254","AL[261]_空盘输送线_XX警报","故障类型：警报alarm","fault_codes[8].29"]
["ADD板上料组装装备","C-PFA-CPPADD-A-BZJG-0001","故障日志\n fault_log","电气控制\nelectric_control","警报\nalarm","供料模块\n feed_module","AL[262]_空盘输送线_XX警报","B40255","AL[262]_空盘输送线_XX警报","故障类型：警报alarm","fault_codes[8].30"]
["ADD板上料组装装备","C-PFA-CPPADD-A-BZJG-0001","故障日志\n fault_log","电气控制\nelectric_control","警报\nalarm","供料模块\n feed_module","AL[263]_空盘输送线_XX警报","B40256","AL[263]_空盘输送线_XX警报","故障类型：警报alarm","fault_codes[8].31"]
["ADD板上料组装装备","C-PFA-CPPADD-A-BZJG-0001","故障日志\n fault_log","电气控制\nelectric_control","警报\nalarm","作业模块\n work_module","AL[264]_翻转机构初始化超时警报","B40257","AL[264]_翻转机构初始化超时警报","故障类型：警报alarm","fault_codes[9].0"]
["ADD板上料组装装备","C-PFA-CPPADD-A-BZJG-0001","故障日志\n fault_log","电气控制\nelectric_control","警报\nalarm","作业模块\n work_module","AL[265]_翻转机构运行超时警报","B40258","AL[265]_翻转机构运行超时警报","故障类型：警报alarm","fault_codes[9].1"]
["ADD板上料组装装备","C-PFA-CPPADD-A-BZJG-0001","故障日志\n fault_log","电气控制\nelectric_control","警报\nalarm","作业模块\n work_module","AL[266]_翻转机构顶升上警报","B40259","AL[266]_翻转机构顶升上警报","故障类型：警报alarm","fault_codes[9].2"]
["ADD板上料组装装备","C-PFA-CPPADD-A-BZJG-0001","故障日志\n fault_log","电气控制\nelectric_control","警报\nalarm","作业模块\n work_module","AL[267]_翻转机构顶升下警报","B40260","AL[267]_翻转机构顶升下警报","故障类型：警报alarm","fault_codes[9].3"]
["ADD板上料组装装备","C-PFA-CPPADD-A-BZJG-0001","故障日志\n fault_log","电气控制\nelectric_control","警报\nalarm","作业模块\n work_module","AL[268]_翻转机构真空1警报","B40261","AL[268]_翻转机构真空1警报","故障类型：警报alarm","fault_codes[9].4"]
["ADD板上料组装装备","C-PFA-CPPADD-A-BZJG-0001","故障日志\n fault_log","电气控制\nelectric_control","警报\nalarm","作业模块\n work_module","AL[269]_翻转机构真空2警报","B40262","AL[269]_翻转机构真空2警报","故障类型：警报alarm","fault_codes[9].5"]
["ADD板上料组装装备","C-PFA-CPPADD-A-BZJG-0001","故障日志\n fault_log","电气控制\nelectric_control","警报\nalarm","作业模块\n work_module","AL[270]_翻转机构轴错误警报","B40263","AL[270]_翻转机构轴错误警报","故障类型：警报alarm","fault_codes[9].6"]
["ADD板上料组装装备","C-PFA-CPPADD-A-BZJG-0001","故障日志\n fault_log","电气控制\nelectric_control","警报\nalarm","作业模块\n work_module","AL[271]_翻转机构XX警报","B40264","AL[271]_翻转机构XX警报","故障类型：警报alarm","fault_codes[9].7"]
["ADD板上料组装装备","C-PFA-CPPADD-A-BZJG-0001","故障日志\n fault_log","电气控制\nelectric_control","警报\nalarm","作业模块\n work_module","AL[272]_翻转机构XX警报","B40265","AL[272]_翻转机构XX警报","故障类型：警报alarm","fault_codes[9].8"]
["ADD板上料组装装备","C-PFA-CPPADD-A-BZJG-0001","故障日志\n fault_log","电气控制\nelectric_control","警报\nalarm","作业模块\n work_module","AL[273]_翻转机构XX警报","B40266","AL[273]_翻转机构XX警报","故障类型：警报alarm","fault_codes[9].9"]
["ADD板上料组装装备","C-PFA-CPPADD-A-BZJG-0001","故障日志\n fault_log","电气控制\nelectric_control","警报\nalarm","作业模块\n work_module","AL[274]_翻转机构XX警报","B40267","AL[274]_翻转机构XX警报","故障类型：警报alarm","fault_codes[9].10"]
["ADD板上料组装装备","C-PFA-CPPADD-A-BZJG-0001","故障日志\n fault_log","电气控制\nelectric_control","警报\nalarm","作业模块\n work_module","AL[275]_翻转机构XX警报","B40268","AL[275]_翻转机构XX警报","故障类型：警报alarm","fault_codes[9].11"]
["ADD板上料组装装备","C-PFA-CPPADD-A-BZJG-0001","故障日志\n fault_log","电气控制\nelectric_control","警报\nalarm","作业模块\n work_module","AL[276]_翻转机构XX警报","B40269","AL[276]_翻转机构XX警报","故障类型：警报alarm","fault_codes[9].12"]
["ADD板上料组装装备","C-PFA-CPPADD-A-BZJG-0001","故障日志\n fault_log","电气控制\nelectric_control","警报\nalarm","作业模块\n work_module","AL[277]_翻转机构XX警报","B40270","AL[277]_翻转机构XX警报","故障类型：警报alarm","fault_codes[9].13"]
["ADD板上料组装装备","C-PFA-CPPADD-A-BZJG-0001","故障日志\n fault_log","电气控制\nelectric_control","警报\nalarm","作业模块\n work_module","AL[278]_翻转机构XX警报","B40271","AL[278]_翻转机构XX警报","故障类型：警报alarm","fault_codes[9].14"]
["ADD板上料组装装备","C-PFA-CPPADD-A-BZJG-0001","故障日志\n fault_log","电气控制\nelectric_control","警报\nalarm","作业模块\n work_module","AL[279]_翻转机构XX警报","B40272","AL[279]_翻转机构XX警报","故障类型：警报alarm","fault_codes[9].15"]
["ADD板上料组装装备","C-PFA-CPPADD-A-BZJG-0001","故障日志\n fault_log","电气控制\nelectric_control","警报\nalarm","作业模块\n work_module","AL[280]_翻转机构XX警报","B40273","AL[280]_翻转机构XX警报","故障类型：警报alarm","fault_codes[9].16"]
["ADD板上料组装装备","C-PFA-CPPADD-A-BZJG-0001","故障日志\n fault_log","电气控制\nelectric_control","警报\nalarm","作业模块\n work_module","AL[281]_翻转机构XX警报","B40274","AL[281]_翻转机构XX警报","故障类型：警报alarm","fault_codes[9].17"]
["ADD板上料组装装备","C-PFA-CPPADD-A-BZJG-0001","故障日志\n fault_log","电气控制\nelectric_control","警报\nalarm","作业模块\n work_module","AL[282]_翻转机构XX警报","B40275","AL[282]_翻转机构XX警报","故障类型：警报alarm","fault_codes[9].18"]
["ADD板上料组装装备","C-PFA-CPPADD-A-BZJG-0001","故障日志\n fault_log","电气控制\nelectric_control","警报\nalarm","作业模块\n work_module","AL[283]_翻转机构XX警报","B40276","AL[283]_翻转机构XX警报","故障类型：警报alarm","fault_codes[9].19"]
["ADD板上料组装装备","C-PFA-CPPADD-A-BZJG-0001","故障日志\n fault_log","电气控制\nelectric_control","警报\nalarm","作业模块\n work_module","AL[284]_翻转机构XX警报","B40277","AL[284]_翻转机构XX警报","故障类型：警报alarm","fault_codes[9].20"]
["ADD板上料组装装备","C-PFA-CPPADD-A-BZJG-0001","故障日志\n fault_log","电气控制\nelectric_control","警报\nalarm","作业模块\n work_module","AL[285]_翻转机构XX警报","B40278","AL[285]_翻转机构XX警报","故障类型：警报alarm","fault_codes[9].21"]
["ADD板上料组装装备","C-PFA-CPPADD-A-BZJG-0001","故障日志\n fault_log","电气控制\nelectric_control","警报\nalarm","作业模块\n work_module","AL[286]_翻转机构XX警报","B40279","AL[286]_翻转机构XX警报","故障类型：警报alarm","fault_codes[9].22"]
["ADD板上料组装装备","C-PFA-CPPADD-A-BZJG-0001","故障日志\n fault_log","电气控制\nelectric_control","警报\nalarm","作业模块\n work_module","AL[287]_翻转机构XX警报","B40280","AL[287]_翻转机构XX警报","故障类型：警报alarm","fault_codes[9].23"]
["ADD板上料组装装备","C-PFA-CPPADD-A-BZJG-0001","故障日志\n fault_log","电气控制\nelectric_control","警报\nalarm","作业模块\n work_module","AL[288]_翻转机构XX警报","B40281","AL[288]_翻转机构XX警报","故障类型：警报alarm","fault_codes[9].24"]
["ADD板上料组装装备","C-PFA-CPPADD-A-BZJG-0001","故障日志\n fault_log","电气控制\nelectric_control","警报\nalarm","作业模块\n work_module","AL[289]_翻转机构XX警报","B40282","AL[289]_翻转机构XX警报","故障类型：警报alarm","fault_codes[9].25"]
["ADD板上料组装装备","C-PFA-CPPADD-A-BZJG-0001","故障日志\n fault_log","电气控制\nelectric_control","警报\nalarm","作业模块\n work_module","AL[290]_翻转机构XX警报","B40283","AL[290]_翻转机构XX警报","故障类型：警报alarm","fault_codes[9].26"]
["ADD板上料组装装备","C-PFA-CPPADD-A-BZJG-0001","故障日志\n fault_log","电气控制\nelectric_control","警报\nalarm","作业模块\n work_module","AL[291]_翻转机构XX警报","B40284","AL[291]_翻转机构XX警报","故障类型：警报alarm","fault_codes[9].27"]
["ADD板上料组装装备","C-PFA-CPPADD-A-BZJG-0001","故障日志\n fault_log","电气控制\nelectric_control","警报\nalarm","作业模块\n work_module","AL[292]_翻转机构XX警报","B40285","AL[292]_翻转机构XX警报","故障类型：警报alarm","fault_codes[9].28"]
["ADD板上料组装装备","C-PFA-CPPADD-A-BZJG-0001","故障日志\n fault_log","电气控制\nelectric_control","警报\nalarm","作业模块\n work_module","AL[293]_翻转机构XX警报","B40286","AL[293]_翻转机构XX警报","故障类型：警报alarm","fault_codes[9].29"]
["ADD板上料组装装备","C-PFA-CPPADD-A-BZJG-0001","故障日志\n fault_log","电气控制\nelectric_control","警报\nalarm","作业模块\n work_module","AL[294]_翻转机构XX警报","B40287","AL[294]_翻转机构XX警报","故障类型：警报alarm","fault_codes[9].30"]
["ADD板上料组装装备","C-PFA-CPPADD-A-BZJG-0001","故障日志\n fault_log","电气控制\nelectric_control","警报\nalarm","作业模块\n work_module","AL[295]_翻转机构XX警报","B40288","AL[295]_翻转机构XX警报","故障类型：警报alarm","fault_codes[9].31"]
["ADD板上料组装装备","C-PFA-CPPADD-A-BZJG-0001","故障日志\n fault_log","电气控制\nelectric_control","警报\nalarm","整机模块\n overall_module","AL[296]_系统_总气源压力警报","B40289","AL[296]_系统_总气源压力警报","故障类型：警报alarm","fault_codes[10].0"]
["ADD板上料组装装备","C-PFA-CPPADD-A-BZJG-0001","故障日志\n fault_log","电气控制\nelectric_control","警报\nalarm","整机模块\n overall_module","AL[297]_系统_后上右安全门警报","B40290","AL[297]_系统_后上右安全门警报","故障类型：警报alarm","fault_codes[10].1"]
["ADD板上料组装装备","C-PFA-CPPADD-A-BZJG-0001","故障日志\n fault_log","电气控制\nelectric_control","警报\nalarm","整机模块\n overall_module","AL[298]_系统_后下右安全门警报","B40291","AL[298]_系统_后下右安全门警报","故障类型：警报alarm","fault_codes[10].2"]
["ADD板上料组装装备","C-PFA-CPPADD-A-BZJG-0001","故障日志\n fault_log","电气控制\nelectric_control","警报\nalarm","整机模块\n overall_module","AL[299]_系统_左后安全门警报","B40292","AL[299]_系统_左后安全门警报","故障类型：警报alarm","fault_codes[10].3"]
["ADD板上料组装装备","C-PFA-CPPADD-A-BZJG-0001","故障日志\n fault_log","电气控制\nelectric_control","警报\nalarm","整机模块\n overall_module","AL[300]_系统_右后安全门警报","B40293","AL[300]_系统_右后安全门警报","故障类型：警报alarm","fault_codes[10].4"]
["ADD板上料组装装备","C-PFA-CPPADD-A-BZJG-0001","故障日志\n fault_log","电气控制\nelectric_control","警报\nalarm","整机模块\n overall_module","AL[301]_系统_前左安全门警报","B40294","AL[301]_系统_前左安全门警报","故障类型：警报alarm","fault_codes[10].5"]
["ADD板上料组装装备","C-PFA-CPPADD-A-BZJG-0001","故障日志\n fault_log","电气控制\nelectric_control","警报\nalarm","整机模块\n overall_module","AL[302]_系统_右前安全门警报","B40295","AL[302]_系统_右前安全门警报","故障类型：警报alarm","fault_codes[10].6"]
["ADD板上料组装装备","C-PFA-CPPADD-A-BZJG-0001","故障日志\n fault_log","电气控制\nelectric_control","警报\nalarm","整机模块\n overall_module","AL[303]_系统_前右安全门警报","B40296","AL[303]_系统_前右安全门警报","故障类型：警报alarm","fault_codes[10].7"]
["ADD板上料组装装备","C-PFA-CPPADD-A-BZJG-0001","故障日志\n fault_log","电气控制\nelectric_control","警报\nalarm","整机模块\n overall_module","AL[304]_系统_左前安全门警报","B40297","AL[304]_系统_左前安全门警报","故障类型：警报alarm","fault_codes[10].8"]
["ADD板上料组装装备","C-PFA-CPPADD-A-BZJG-0001","故障日志\n fault_log","电气控制\nelectric_control","警报\nalarm","整机模块\n overall_module","AL[305]_系统_后上左安全门警报","B40298","AL[305]_系统_后上左安全门警报","故障类型：警报alarm","fault_codes[10].9"]
["ADD板上料组装装备","C-PFA-CPPADD-A-BZJG-0001","故障日志\n fault_log","电气控制\nelectric_control","警报\nalarm","整机模块\n overall_module","AL[306]_系统_后下左安全门警报","B40299","AL[306]_系统_后下左安全门警报","故障类型：警报alarm","fault_codes[10].10"]
["ADD板上料组装装备","C-PFA-CPPADD-A-BZJG-0001","故障日志\n fault_log","电气控制\nelectric_control","警报\nalarm","整机模块\n overall_module","AL[307]_系统_前光栅警报","B40300","AL[307]_系统_前光栅警报","故障类型：警报alarm","fault_codes[10].11"]
["ADD板上料组装装备","C-PFA-CPPADD-A-BZJG-0001","故障日志\n fault_log","电气控制\nelectric_control","警报\nalarm","整机模块\n overall_module","AL[308]_系统_后光栅警报","B40301","AL[308]_系统_后光栅警报","故障类型：警报alarm","fault_codes[10].12"]
["ADD板上料组装装备","C-PFA-CPPADD-A-BZJG-0001","故障日志\n fault_log","电气控制\nelectric_control","警报\nalarm","整机模块\n overall_module","AL[309]_系统_XX警报","B40302","AL[309]_系统_XX警报","故障类型：警报alarm","fault_codes[10].13"]
["ADD板上料组装装备","C-PFA-CPPADD-A-BZJG-0001","故障日志\n fault_log","电气控制\nelectric_control","警报\nalarm","整机模块\n overall_module","AL[310]_系统_XX警报","B40303","AL[310]_系统_XX警报","故障类型：警报alarm","fault_codes[10].14"]
["ADD板上料组装装备","C-PFA-CPPADD-A-BZJG-0001","故障日志\n fault_log","电气控制\nelectric_control","警报\nalarm","整机模块\n overall_module","AL[311]_系统_XX警报","B40304","AL[311]_系统_XX警报","故障类型：警报alarm","fault_codes[10].15"]
["ADD板上料组装装备","C-PFA-CPPADD-A-BZJG-0001","故障日志\n fault_log","电气控制\nelectric_control","警报\nalarm","整机模块\n overall_module","AL[312]_系统_XX警报","B40305","AL[312]_系统_XX警报","故障类型：警报alarm","fault_codes[10].16"]
["ADD板上料组装装备","C-PFA-CPPADD-A-BZJG-0001","故障日志\n fault_log","电气控制\nelectric_control","警报\nalarm","整机模块\n overall_module","AL[313]_系统_XX警报","B40306","AL[313]_系统_XX警报","故障类型：警报alarm","fault_codes[10].17"]
["ADD板上料组装装备","C-PFA-CPPADD-A-BZJG-0001","故障日志\n fault_log","电气控制\nelectric_control","警报\nalarm","整机模块\n overall_module","AL[314]_系统_XX警报","B40307","AL[314]_系统_XX警报","故障类型：警报alarm","fault_codes[10].18"]
["ADD板上料组装装备","C-PFA-CPPADD-A-BZJG-0001","故障日志\n fault_log","电气控制\nelectric_control","警报\nalarm","整机模块\n overall_module","AL[315]_系统_XX警报","B40308","AL[315]_系统_XX警报","故障类型：警报alarm","fault_codes[10].19"]
["ADD板上料组装装备","C-PFA-CPPADD-A-BZJG-0001","故障日志\n fault_log","电气控制\nelectric_control","警报\nalarm","整机模块\n overall_module","AL[316]_系统_XX警报","B40309","AL[316]_系统_XX警报","故障类型：警报alarm","fault_codes[10].20"]
["ADD板上料组装装备","C-PFA-CPPADD-A-BZJG-0001","故障日志\n fault_log","电气控制\nelectric_control","警报\nalarm","整机模块\n overall_module","AL[317]_系统_XX警报","B40310","AL[317]_系统_XX警报","故障类型：警报alarm","fault_codes[10].21"]
["ADD板上料组装装备","C-PFA-CPPADD-A-BZJG-0001","故障日志\n fault_log","电气控制\nelectric_control","警报\nalarm","整机模块\n overall_module","AL[318]_系统_XX警报","B40311","AL[318]_系统_XX警报","故障类型：警报alarm","fault_codes[10].22"]
["ADD板上料组装装备","C-PFA-CPPADD-A-BZJG-0001","故障日志\n fault_log","电气控制\nelectric_control","警报\nalarm","整机模块\n overall_module","AL[319]_系统_XX警报","B40312","AL[319]_系统_XX警报","故障类型：警报alarm","fault_codes[10].23"]
["ADD板上料组装装备","C-PFA-CPPADD-A-BZJG-0001","故障日志\n fault_log","电气控制\nelectric_control","警报\nalarm","整机模块\n overall_module","AL[320]_系统_XX警报","B40313","AL[320]_系统_XX警报","故障类型：警报alarm","fault_codes[10].24"]
["ADD板上料组装装备","C-PFA-CPPADD-A-BZJG-0001","故障日志\n fault_log","电气控制\nelectric_control","警报\nalarm","整机模块\n overall_module","AL[321]_系统_XX警报","B40314","AL[321]_系统_XX警报","故障类型：警报alarm","fault_codes[10].25"]
["ADD板上料组装装备","C-PFA-CPPADD-A-BZJG-0001","故障日志\n fault_log","电气控制\nelectric_control","警报\nalarm","整机模块\n overall_module","AL[322]_系统_XX警报","B40315","AL[322]_系统_XX警报","故障类型：警报alarm","fault_codes[10].26"]
["ADD板上料组装装备","C-PFA-CPPADD-A-BZJG-0001","故障日志\n fault_log","电气控制\nelectric_control","警报\nalarm","整机模块\n overall_module","AL[323]_系统_XX警报","B40316","AL[323]_系统_XX警报","故障类型：警报alarm","fault_codes[10].27"]
["ADD板上料组装装备","C-PFA-CPPADD-A-BZJG-0001","故障日志\n fault_log","电气控制\nelectric_control","警报\nalarm","整机模块\n overall_module","AL[324]_系统_XX警报","B40317","AL[324]_系统_XX警报","故障类型：警报alarm","fault_codes[10].28"]
["ADD板上料组装装备","C-PFA-CPPADD-A-BZJG-0001","故障日志\n fault_log","电气控制\nelectric_control","警报\nalarm","整机模块\n overall_module","AL[325]_系统_XX警报","B40318","AL[325]_系统_XX警报","故障类型：警报alarm","fault_codes[10].29"]
["ADD板上料组装装备","C-PFA-CPPADD-A-BZJG-0001","故障日志\n fault_log","电气控制\nelectric_control","警报\nalarm","整机模块\n overall_module","AL[326]_系统_XX警报","B40319","AL[326]_系统_XX警报","故障类型：警报alarm","fault_codes[10].30"]
["ADD板上料组装装备","C-PFA-CPPADD-A-BZJG-0001","故障日志\n fault_log","电气控制\nelectric_control","警报\nalarm","整机模块\n overall_module","AL[327]_系统_XX警报","B40320","AL[327]_系统_XX警报","故障类型：警报alarm","fault_codes[10].31"]

{"sheet":"装备配置参数","index":5,"n_rows":14,"n_cols":19,"rows_kept":14,"cut":false,"hidden":false,"merged":[[0,0,0,18],[6,3,7,3],[8,3,9,3],[10,3,11,3],[8,4,9,4],[10,4,11,4]]}
["填写说明\n1.*为必填\n2.设备分类名称：必填，填写内容必须是“设备分类”页面定义或系统中已经存在的设备分类名称\n3.设备分类编码：必填，填写内容必须是“设备分类”页面定义或系统中已经存在的设备分类编码\n4.分类层级：默认四个分类层级，可以不需要填写，如一个上级分类对应多个下级分类需要对上级分类合并单元格\n5.属性名称：必填，不超过30字符\n6.属性ID：必填，不超过300字符，不能重复，如填写的属性ID系统中同一设备分类下已存在无法导入\n7.采集形式：必选，只能输入“周期采集”或“触发采集”，如输入其他内容无法导入\n8.时间单位（采集周期）：如“采集形式”为“周期采集”该数据必选，如“采集形式”为“触发采集”，该数据不需选择，只能选择下拉框中定义的内容，填写其他数据无法导入\n9.采集时段：必填，需要按示意的格式填写“00:00:00-23:59:59”范围的数据\n10.读写类型：必选，只能输入“只读”、“只写”或“读写”，如输入其他内容无法导入\n11.是否数组：必选，只能输入“是”或“否”，如输入其他内容无法导入\n12.标签：非必填，可以填写多个标签，每个标签需要填写标签名称和标签值，标签名称和标签值用冒号分隔，不同标签之间用分号分隔，如“标签1:值;标签2:值”\n13.数据类型：必选，只能输入“Int（整数）”、“Double（小数）”、“Enum（枚举）”、“Bool（布尔）”、“String（字符串）”、“Struct（结构体）”、“Timestamp（时间戳）”\n14.数据定义：“数据类型”为“Int（整数）”、“Double（小数）”、“String（字符串）”、“Timestamp（时间戳）”时非必填，“数据类型”为“Enum（枚举）”、“Bool（布尔）”、“Struct（结构体）”、时数据定义必填，按“数据定义说明中示例格式填写”\n15.数据定义说明：“数据类型”选择不同内容时会显示对应格式的数据定义填写说明，本列用于提示“数据定义”列填写规则，与数据导入内容和校验无关\n16.描述：非必填，不超过100字符\n17.删除示例数据：录入数据时需删除第四行及以下的示例数据"]
[]
["*设备分类名称","*设备分类编码","分类层级1","分类层级2","分类层级3","分类层级4","*属性名称","*属性ID","*采集形式","采集周期","时间单位（默认采集周期）","*采集时段","*读写类型","*是否数组","标签","*数据类型","数据定义","数据定义说明（数据定义列按同行本列提示格式填写）","描述"]
[{"$nulls":17},{"$f":"IF(P4=\"Int（整数）\",填写规范!$B$9,IF(P4=\"Double（小数）\",填写规范!$B$10,IF(P4=\"Enum（枚举）\",填写规范!$B$11,IF(P4=\"Bool（布尔）\",填写规范!$B$12,IF(P4=\"String（字符串）\",填写规范!$B$13,IF(P4=\"Struct（结构体）\",填写规范!$B$14,\"\"))))))","v":""}]
[{"$nulls":17},{"$f":"IF(P5=\"Int（整数）\",填写规范!$B$9,IF(P5=\"Double（小数）\",填写规范!$B$10,IF(P5=\"Enum（枚举）\",填写规范!$B$11,IF(P5=\"Bool（布尔）\",填写规范!$B$12,IF(P5=\"String（字符串）\",填写规范!$B$13,IF(P5=\"Struct（结构体）\",填写规范!$B$14,\"\"))))))","v":""}]
[{"$nulls":17},{"$f":"IF(P6=\"Int（整数）\",填写规范!$B$9,IF(P6=\"Double（小数）\",填写规范!$B$10,IF(P6=\"Enum（枚举）\",填写规范!$B$11,IF(P6=\"Bool（布尔）\",填写规范!$B$12,IF(P6=\"String（字符串）\",填写规范!$B$13,IF(P6=\"Struct（结构体）\",填写规范!$B$14,\"\"))))))","v":""}]
[{"$nulls":17},{"$f":"IF(P7=\"Int（整数）\",填写规范!$B$9,IF(P7=\"Double（小数）\",填写规范!$B$10,IF(P7=\"Enum（枚举）\",填写规范!$B$11,IF(P7=\"Bool（布尔）\",填写规范!$B$12,IF(P7=\"String（字符串）\",填写规范!$B$13,IF(P7=\"Struct（结构体）\",填写规范!$B$14,\"\"))))))","v":""}]
[{"$nulls":17},{"$f":"IF(P8=\"Int（整数）\",填写规范!$B$9,IF(P8=\"Double（小数）\",填写规范!$B$10,IF(P8=\"Enum（枚举）\",填写规范!$B$11,IF(P8=\"Bool（布尔）\",填写规范!$B$12,IF(P8=\"String（字符串）\",填写规范!$B$13,IF(P8=\"Struct（结构体）\",填写规范!$B$14,\"\"))))))","v":""}]
[{"$nulls":17},{"$f":"IF(P9=\"Int（整数）\",填写规范!$B$9,IF(P9=\"Double（小数）\",填写规范!$B$10,IF(P9=\"Enum（枚举）\",填写规范!$B$11,IF(P9=\"Bool（布尔）\",填写规范!$B$12,IF(P9=\"String（字符串）\",填写规范!$B$13,IF(P9=\"Struct（结构体）\",填写规范!$B$14,\"\"))))))","v":""}]
[{"$nulls":17},{"$f":"IF(P10=\"Int（整数）\",填写规范!$B$9,IF(P10=\"Double（小数）\",填写规范!$B$10,IF(P10=\"Enum（枚举）\",填写规范!$B$11,IF(P10=\"Bool（布尔）\",填写规范!$B$12,IF(P10=\"String（字符串）\",填写规范!$B$13,IF(P10=\"Struct（结构体）\",填写规范!$B$14,\"\"))))))","v":""}]
[{"$nulls":17},{"$f":"IF(P11=\"Int（整数）\",填写规范!$B$9,IF(P11=\"Double（小数）\",填写规范!$B$10,IF(P11=\"Enum（枚举）\",填写规范!$B$11,IF(P11=\"Bool（布尔）\",填写规范!$B$12,IF(P11=\"String（字符串）\",填写规范!$B$13,IF(P11=\"Struct（结构体）\",填写规范!$B$14,\"\"))))))","v":""}]
[{"$nulls":17},{"$f":"IF(P12=\"Int（整数）\",填写规范!$B$9,IF(P12=\"Double（小数）\",填写规范!$B$10,IF(P12=\"Enum（枚举）\",填写规范!$B$11,IF(P12=\"Bool（布尔）\",填写规范!$B$12,IF(P12=\"String（字符串）\",填写规范!$B$13,IF(P12=\"Struct（结构体）\",填写规范!$B$14,\"\"))))))","v":""}]
[{"$nulls":17},{"$f":"IF(P13=\"Int（整数）\",填写规范!$B$9,IF(P13=\"Double（小数）\",填写规范!$B$10,IF(P13=\"Enum（枚举）\",填写规范!$B$11,IF(P13=\"Bool（布尔）\",填写规范!$B$12,IF(P13=\"String（字符串）\",填写规范!$B$13,IF(P13=\"Struct（结构体）\",填写规范!$B$14,\"\"))))))","v":""}]
[{"$nulls":17},{"$f":"IF(P14=\"Int（整数）\",填写规范!$B$9,IF(P14=\"Double（小数）\",填写规范!$B$10,IF(P14=\"Enum（枚举）\",填写规范!$B$11,IF(P14=\"Bool（布尔）\",填写规范!$B$12,IF(P14=\"String（字符串）\",填写规范!$B$13,IF(P14=\"Struct（结构体）\",填写规范!$B$14,\"\"))))))","v":""}]

{"sheet":"工艺配置参数","index":6,"n_rows":13,"n_cols":19,"rows_kept":13,"cut":false,"hidden":false,"merged":[[0,0,0,18]]}
[" "]
[]
["*设备分类名称","*设备分类编码","分类层级1","分类层级2","分类层级3","分类层级4","*属性名称","*属性ID","*采集形式","*采集周期","时间单位（默认采集周期）","*采集时段","*读写类型","*是否数组","标签","*数据类型","数据定义","数据定义说明（数据定义列按同行本列提示格式填写）","描述"]
[{"$nulls":17},{"$f":"IF(P4=\"Int（整数）\",填写规范!$B$9,IF(P4=\"Double（小数）\",填写规范!$B$10,IF(P4=\"Enum（枚举）\",填写规范!$B$11,IF(P4=\"Bool（布尔）\",填写规范!$B$12,IF(P4=\"String（字符串）\",填写规范!$B$13,IF(P4=\"Struct（结构体）\",填写规范!$B$14,\"\"))))))","v":""}]
[{"$nulls":17},{"$f":"IF(P5=\"Int（整数）\",填写规范!$B$9,IF(P5=\"Double（小数）\",填写规范!$B$10,IF(P5=\"Enum（枚举）\",填写规范!$B$11,IF(P5=\"Bool（布尔）\",填写规范!$B$12,IF(P5=\"String（字符串）\",填写规范!$B$13,IF(P5=\"Struct（结构体）\",填写规范!$B$14,\"\"))))))","v":""}]
[{"$nulls":17},{"$f":"IF(P6=\"Int（整数）\",填写规范!$B$9,IF(P6=\"Double（小数）\",填写规范!$B$10,IF(P6=\"Enum（枚举）\",填写规范!$B$11,IF(P6=\"Bool（布尔）\",填写规范!$B$12,IF(P6=\"String（字符串）\",填写规范!$B$13,IF(P6=\"Struct（结构体）\",填写规范!$B$14,\"\"))))))","v":""}]
[{"$nulls":17},{"$f":"IF(P7=\"Int（整数）\",填写规范!$B$9,IF(P7=\"Double（小数）\",填写规范!$B$10,IF(P7=\"Enum（枚举）\",填写规范!$B$11,IF(P7=\"Bool（布尔）\",填写规范!$B$12,IF(P7=\"String（字符串）\",填写规范!$B$13,IF(P7=\"Struct（结构体）\",填写规范!$B$14,\"\"))))))","v":""}]
[{"$nulls":17},{"$f":"IF(P8=\"Int（整数）\",填写规范!$B$9,IF(P8=\"Double（小数）\",填写规范!$B$10,IF(P8=\"Enum（枚举）\",填写规范!$B$11,IF(P8=\"Bool（布尔）\",填写规范!$B$12,IF(P8=\"String（字符串）\",填写规范!$B$13,IF(P8=\"Struct（结构体）\",填写规范!$B$14,\"\"))))))","v":""}]
[{"$nulls":17},{"$f":"IF(P9=\"Int（整数）\",填写规范!$B$9,IF(P9=\"Double（小数）\",填写规范!$B$10,IF(P9=\"Enum（枚举）\",填写规范!$B$11,IF(P9=\"Bool（布尔）\",填写规范!$B$12,IF(P9=\"String（字符串）\",填写规范!$B$13,IF(P9=\"Struct（结构体）\",填写规范!$B$14,\"\"))))))","v":""}]
[{"$nulls":17},{"$f":"IF(P10=\"Int（整数）\",填写规范!$B$9,IF(P10=\"Double（小数）\",填写规范!$B$10,IF(P10=\"Enum（枚举）\",填写规范!$B$11,IF(P10=\"Bool（布尔）\",填写规范!$B$12,IF(P10=\"String（字符串）\",填写规范!$B$13,IF(P10=\"Struct（结构体）\",填写规范!$B$14,\"\"))))))","v":""}]
[{"$nulls":17},{"$f":"IF(P11=\"Int（整数）\",填写规范!$B$9,IF(P11=\"Double（小数）\",填写规范!$B$10,IF(P11=\"Enum（枚举）\",填写规范!$B$11,IF(P11=\"Bool（布尔）\",填写规范!$B$12,IF(P11=\"String（字符串）\",填写规范!$B$13,IF(P11=\"Struct（结构体）\",填写规范!$B$14,\"\"))))))","v":""}]
[{"$nulls":17},{"$f":"IF(P12=\"Int（整数）\",填写规范!$B$9,IF(P12=\"Double（小数）\",填写规范!$B$10,IF(P12=\"Enum（枚举）\",填写规范!$B$11,IF(P12=\"Bool（布尔）\",填写规范!$B$12,IF(P12=\"String（字符串）\",填写规范!$B$13,IF(P12=\"Struct（结构体）\",填写规范!$B$14,\"\"))))))","v":""}]
[{"$nulls":17},{"$f":"IF(P13=\"Int（整数）\",填写规范!$B$9,IF(P13=\"Double（小数）\",填写规范!$B$10,IF(P13=\"Enum（枚举）\",填写规范!$B$11,IF(P13=\"Bool（布尔）\",填写规范!$B$12,IF(P13=\"String（字符串）\",填写规范!$B$13,IF(P13=\"Struct（结构体）\",填写规范!$B$14,\"\"))))))","v":""}]

{"sheet":"过站明细","index":7,"n_rows":5,"n_cols":7,"rows_kept":5,"cut":false,"hidden":false,"merged":[]}
["功能名称（必填）","测试项（必填）","值示例","上限值（如有）","下限值（如有）","单位"," 描述"]
["Machine_加⼯模块","是否组装到位",1]
["Machine_加⼯模块","是否有ADD板",1]
["Machine_加⼯模块","装ADD板的压力",5.2]
["Machine_加⼯模块","ADD板余料数",5]

{"sheet":"非结构化数据","index":8,"n_rows":2,"n_cols":4,"rows_kept":2,"cut":false,"hidden":false,"merged":[]}
["图片名称","图片类型","图片大小(平均)","图片说明"]
["强度图","bmp","16MB"]